Workbook

Sheet Index
W1: Référence | X1: 3819.14 | Y1: 3.197363985 | Z1: =+Y1/$N$11 -> 4.494909534 | AB1: 3500 | AC1: 0 | AE1: =+N11 -> 0.7113299968
A2: l | B2: Iobs(l) | C2: I(l) | D2: I(l) | E2: Iobs(l) | F2: A(l)/EB-V | H2: Correction Extinction interstellaire | N2: Rv = 3.1 | W2: (Pickles A0v) | X2: 3820.14 | Y2: 3.267296376 | Z2: =+Y2/$N$11 -> 4.593221698 | AB2: 3501 | AC2: 1.713477919e-23 | AD2: =+AC2/$AE$1 -> 2.408836864e-23
D3: norm | E3: norm | X3: 3821.14 | Y3: 3.296793851 | Z3: 4.634689758 | AB3: 3502 | AC3: -1.172174667e-22 | AD3: -1.6478634e-22
X4: 3822.14 | Y4: 3.290763203 | Z4: 4.626211769 | AB4: 3503 | AC4: 6.624149864e-22 | AD4: 9.312344331e-22
A5: 3818.14 | B5: 0.7803274975 | C5: =+E5*10^(0.4*$I$5*F5) -> 2.190415659 | D5: =+C5/$N$9 -> 2.671550426 | E5: =+B5/$N$10 -> 0.7161047189 | F5: =+VLOOKUP(A5,MILES_Reg!A$3:C$5563,3,1) -> 1.4625 | H5: EB-V | I5: =+K5/10+K6/100 -> 0.83 | K5: 8 | L5: Normalisation | M5: l | N5: 6000 | X5: 3823.14 | Y5: 3.254111227 | Z5: 4.574685788 | AB5: 3504 | AC5: -3.181616954e-21 | AD5: -4.472772086e-21
A6: 3819.14 | B6: 0.781536628 | C6: =+E6*10^(0.4*$I$5*F6) -> 2.192312867 | D6: 2.673864364 | E6: =+B6/$N$10 -> 0.7172143352 | F6: =+VLOOKUP(A6,MILES_Reg!A$3:C$5563,3,1) -> 1.461607143 | K6: 3 | M6: Dl | N6: 20 | X6: 3824.14 | Y6: 3.191744713 | Z6: 4.487009865 | AB6: 3505 | AC6: 1.350142715e-20 | AD6: 1.898053956e-20
A7: 3820.14 | B7: 0.780505379 | C7: 2.187926195 | D7: 2.668514139 | E7: 0.7162679604 | F7: =+VLOOKUP(A7,MILES_Reg!A$3:C$5563,3,1) -> 1.460714286 | M7: l min | N7: =+N5-N6 -> 5980 | O7: =+CONCATENATE(">",N7) -> >5980 | X7: 3825.14 | Y7: 3.10856905 | Z7: 4.37008008 | AB7: 3506 | AC7: -5.081669253e-20 | AD7: -7.143898437e-20
A8: 3821.14 | B8: 0.7797066924 | C8: 2.184195966 | D8: 2.663964549 | E8: 0.7155350075 | F8: =+VLOOKUP(A8,MILES_Reg!A$3:C$5563,3,1) -> 1.459821429 | M8: l max | N8: =+N5+N6 -> 6020 | O8: =+CONCATENATE("<",N8) -> <6020 | X8: 3826.14 | Y8: 3.008727345 | Z8: 4.229720887 | AB8: 3507 | AC8: 1.633766147e-19 | AD8: 2.296776678e-19
A9: 3822.14 | B9: 0.782023458 | C9: 2.189191186 | D9: 2.670056991 | E9: 0.7176610979 | F9: =+VLOOKUP(A9,MILES_Reg!A$3:C$5563,3,1) -> 1.458928571 | M9: I norm | N9: =+AVERAGEIFS($C$5:$C$3575,$A$5:$A$3575,$O$7,$A$5:$A$3575,$O$8) -> 0.8199042916 | X9: 3827.14 | Y9: 2.894345501 | Z9: 4.068920914 | AB9: 3508 | AC9: -3.822629043e-19 | AD9: -5.373917957e-19
A10: 3823.14 | B10: 0.784361843 | C10: 2.194239051 | D10: 2.676213643 | E10: 0.7198070284 | F10: =+VLOOKUP(A10,MILES_Reg!A$3:C$5563,3,1) -> 1.458035714 | M10: I norm_obs | N10: =+AVERAGEIFS($B5:$B$3575,$A$5:$A$3575,$O$7,$A$5:$A$3575,$O$8) -> 1.089683501 | X10: 3828.14 | Y10: 2.767219476 | Z10: 3.890204952 | AB10: 3509 | AC10: 0 | AD10: 0
A11: 3824.14 | B11: 0.7834604482 | C11: 2.190221964 | D11: 2.671314184 | E11: 0.7189798204 | F11: =+VLOOKUP(A11,MILES_Reg!A$3:C$5563,3,1) -> 1.457142857 | M11: I norm_ref | N11: =+AVERAGEIFS($AC$5:$AC$3575,$AB$5:$AB$3575,$O$7,$AB$5:$AB$3575,$O$8) -> 0.7113299968 | X11: 3829.14 | Y11: 2.629145273 | Z11: 3.696097852 | AB11: 3510 | AC11: 7.554981166e-18 | AD11: 1.062092306e-17
A12: 3825.14 | B12: 0.7809947592 | C12: 2.18183922 | D12: 2.661090132 | E12: 0.7167170634 | F12: =+VLOOKUP(A12,MILES_Reg!A$3:C$5563,3,1) -> 1.45625 | X12: 3830.14 | Y12: 2.481925897 | Z12: 3.489134308 | AB12: 3511 | AC12: -6.083261858e-17 | AD12: -8.551954627e-17
A13: 3826.14 | B13: 0.7778620691 | C13: 2.171604788 | D13: 2.648607661 | E13: 0.713842201 | F13: =+VLOOKUP(A13,MILES_Reg!A$3:C$5563,3,1) -> 1.455357143 | X13: 3831.14 | Y13: 2.331175746 | Z13: 3.277207141 | AB13: 3512 | AC13: 3.470310626e-16 | AD13: 4.878622639e-16
A14: 3827.14 | B14: 0.7590978493 | C14: 2.117773592 | D14: 2.582952198 | E14: 0.6966223205 | F14: =+VLOOKUP(A14,MILES_Reg!A$3:C$5563,3,1) -> 1.454464286 | X14: 3832.14 | Y14: 2.192595271 | Z14: 3.082388315 | AB14: 3513 | AC14: -1.667670497e-15 | AD14: -2.344439999e-15
A15: 3828.14 | B15: 0.7411253111 | C15: 2.066222015 | D15: 2.520077082 | E15: 0.6801289641 | F15: =+VLOOKUP(A15,MILES_Reg!A$3:C$5563,3,1) -> 1.453571429 | X15: 3833.14 | Y15: 2.083534603 | Z15: 2.929068944 | AB15: 3514 | AC15: 7.0770852e-15 | AD15: 9.949088653e-15
A16: 3829.14 | B16: 0.7227719536 | C16: 2.01367882 | D16: 2.455992536 | E16: 0.6632861309 | F16: =+VLOOKUP(A16,MILES_Reg!A$3:C$5563,3,1) -> 1.452678571 | Q16: MILES Linear | X16: 3834.14 | Y16: 2.021343735 | Z16: 2.841639948 | AB16: 3515 | AC16: -2.663678652e-14 | AD16: -3.744645472e-14
A17: 3830.14 | B17: 0.7043485585 | C17: 1.961011371 | D17: 2.391756441 | E17: 0.6463790244 | F17: =+VLOOKUP(A17,MILES_Reg!A$3:C$5563,3,1) -> 1.451785714 | X17: 3835.14 | Y17: 2.023355158 | Z17: 2.844467641 | AB17: 3516 | AC17: 8.563777322e-14 | AD17: 1.203910612e-13
A18: 3831.14 | B18: 0.6859076231 | C18: 1.908366054 | D18: 2.327547341 | E18: 0.6294558211 | F18: =+VLOOKUP(A18,MILES_Reg!A$3:C$5563,3,1) -> 1.450892857 | R18: l | S18: f(l) | T18: A(l)/EB-V | X18: 3836.14 | Y18: 2.097370959 | Z18: 2.948520333 | AB18: 3517 | AC18: -2.003722756e-13 | AD18: -2.81686807e-13
A19: 3832.14 | B19: 0.6792529402 | C19: 1.888561585 | D19: 2.303392731 | E19: 0.6233488341 | F19: =+VLOOKUP(A19,MILES_Reg!A$3:C$5563,3,1) -> 1.45 | R19: [nm] | X19: 3837.14 | Y19: 2.225973008 | Z19: 3.129311316 | AB19: 3518 | AC19: 0 | AD19: 0
A20: 3833.14 | B20: 0.6723157542 | C20: 1.867998332 | D20: 2.278312665 | E20: 0.6169825948 | F20: =+VLOOKUP(A20,MILES_Reg!A$3:C$5563,3,1) -> 1.449107143 | X20: 3838.14 | Y20: 2.387618183 | Z20: 3.356554895 | AB20: 3519 | AC20: 3.960124698e-12 | AD20: 5.567211724e-12
A21: 3834.14 | B21: 0.6678899586 | C21: 1.854435282 | D21: 2.26177043 | E21: 0.6129210525 | F21: =+VLOOKUP(A21,MILES_Reg!A$3:C$5563,3,1) -> 1.448214286 | R21: 0.344 | S21: 4.9 | T21: =+S21-3.1 -> 1.8 | X21: 3839.14 | Y21: 2.560763568 | Z21: 3.599965669 | AB21: 3520 | AC21: -3.188687701e-11 | AD21: -4.482712265e-11
A22: 3835.14 | B22: 0.6661762277 | C22: 1.848414939 | D22: 2.254427691 | E22: 0.6113483657 | F22: =+VLOOKUP(A22,MILES_Reg!A$3:C$5563,3,1) -> 1.447321429 | R22: 0.4 | S22: 4.4 | T22: =+S22-3.1 -> 1.3 | X22: 3840.14 | Y22: 2.723876672 | Z22: 3.829272889 | AB22: 3521 | AC22: 1.819046602e-10 | AD22: 2.557247143e-10
A23: 3836.14 | B23: 0.6639803689 | C23: 1.841065118 | D23: 2.245463448 | E23: 0.6093332312 | F23: =+VLOOKUP(A23,MILES_Reg!A$3:C$5563,3,1) -> 1.446428571 | R23: 0.44 | S23: 4.1 | T23: 1 | X23: 3841.14 | Y23: 2.861117945 | Z23: 4.022209041 | AB23: 3522 | AC23: -8.741495153e-10 | AD23: =+AC23/AVERAGE(AD2451:AD2551) -> -8.752939325e-10
A24: 3837.14 | B24: 0.6725871052 | C24: 1.863657144 | D24: 2.273017916 | E24: 0.6172316129 | F24: =+VLOOKUP(A24,MILES_Reg!A$3:C$5563,3,1) -> 1.445535714 | R24: 0.55 | S24: 3.1 | T24: 0 | X24: 3842.14 | Y24: 2.97171299 | Z24: 4.177685467 | AB24: 3523 | AC24: 3.709624058e-09 | AD24: =+AC24/$AE$1 -> 5.215053595e-09
A25: 3838.14 | B25: 0.68136658 | C25: 1.886695795 | D25: 2.301117111 | E25: 0.6252885165 | F25: =+VLOOKUP(A25,MILES_Reg!A$3:C$5563,3,1) -> 1.444642857 | R25: 0.7 | S25: 2.32 | T25: -0.78 | X25: 3843.14 | Y25: 3.057351449 | Z25: 4.298077492 | AB25: 3524 | AC25: -1.396231094e-08 | AD25: -1.962845796e-08
A26: 3839.14 | B26: 0.6964199354 | C26: 1.927062584 | D26: 2.350350649 | E26: 0.6391029455 | F26: =+VLOOKUP(A26,MILES_Reg!A$3:C$5563,3,1) -> 1.44375 | R26: 0.9 | S26: 1.5 | T26: -1.6 | X26: 3844.14 | Y26: 3.119722866 | Z26: 4.385760307 | AB26: 3525 | AC26: 4.488909414e-08 | AD26: 6.310586414e-08
A27: 3840.14 | B27: 0.722307092 | C27: 1.997331149 | D27: 2.436054024 | E27: 0.6628595285 | F27: =+VLOOKUP(A27,MILES_Reg!A$3:C$5563,3,1) -> 1.442857143 | X27: 3845.14 | Y27: 3.160518423 | Z27: 4.443111407 | AB27: 3526 | AC27: -1.050299372e-07 | AD27: -1.476529004e-07
A28: 3841.14 | B28: 0.7475482153 | C28: 2.065717727 | D28: 2.519462025 | E28: 0.6860232483 | F28: =+VLOOKUP(A28,MILES_Reg!A$3:C$5563,3,1) -> 1.441964286 | X28: 3846.14 | Y28: 3.182305067 | Z28: 4.473739448 | AB28: 3527 | AC28: 0 | AD28: 0
A29: 3842.14 | B29: 0.7751407941 | C29: 2.140503451 | D29: 2.610674774 | E29: 0.7113448933 | F29: =+VLOOKUP(A29,MILES_Reg!A$3:C$5563,3,1) -> 1.441071429 | H29: Blue = Observed Spectrum | L29: Red = Dereddened Spectrum | O29: Black = Miles dereddened | X29: 3847.14 | Y29: 3.189967292 | Z29: 4.484511136 | AB29: 3528 | AC29: 2.075794403e-06 | AD29: 2.918187638e-06
A30: 3843.14 | B30: 0.8026688808 | C30: 2.215008189 | D30: 2.701544816 | E30: 0.7366073541 | F30: =+VLOOKUP(A30,MILES_Reg!A$3:C$5563,3,1) -> 1.440178571 | X30: 3848.14 | Y30: 3.18876865 | Z30: 4.482826064 | AB30: 3529 | AC30: -1.671427187e-05 | AD30: -2.349721219e-05
A31: 3844.14 | B31: 0.8248205494 | C31: 2.274583865 | D31: 2.77420656 | E31: 0.7569358885 | F31: =+VLOOKUP(A31,MILES_Reg!A$3:C$5563,3,1) -> 1.439285714 | X31: 3849.14 | Y31: 3.183972663 | Z31: 4.476083783 | AB31: 3530 | AC31: 9.534969336e-05 | AD31: 0.0001340442464
A32: 3845.14 | B32: 0.8314156908 | C32: 2.291206694 | D32: 2.79448067 | E32: 0.7629882343 | F32: =+VLOOKUP(A32,MILES_Reg!A$3:C$5563,3,1) -> 1.438392857 | X32: 3850.14 | Y32: 3.180839506 | Z32: 4.471679136 | AB32: 3531 | AC32: -0.000458206448 | AD32: -0.0006441545415
A33: 3846.14 | B33: 0.8393374122 | C33: 2.311459062 | D33: 2.819181563 | E33: 0.7702579796 | F33: =+VLOOKUP(A33,MILES_Reg!A$3:C$5563,3,1) -> 1.4375 | X33: 3851.14 | Y33: 3.182805525 | Z33: 4.474443 | AB33: 3532 | AC33: 0.001944488481 | AD33: 0.002733595503
A34: 3847.14 | B34: 0.837886973 | C34: 2.305890257 | D34: 2.812389544 | E34: 0.7689269149 | F34: =+VLOOKUP(A34,MILES_Reg!A$3:C$5563,3,1) -> 1.436607143 | X34: 3852.14 | Y34: 3.188480694 | Z34: 4.48242125 | AB34: 3533 | AC34: -0.007318680373 | AD34: -0.01028872732
A35: 3848.14 | B35: 0.8348706052 | C35: 2.296021433 | D35: 2.800352988 | E35: 0.7661588013 | F35: =+VLOOKUP(A35,MILES_Reg!A$3:C$5563,3,1) -> 1.435714286 | X35: 3853.14 | Y35: 3.195685588 | Z35: 4.492550015 | AB35: 3534 | AC35: 0.02352970074 | AD35: 0.03307845984
A36: 3849.14 | B36: 0.8319245116 | C36: 2.286358135 | D36: 2.788567103 | E36: 0.763455178 | F36: =+VLOOKUP(A36,MILES_Reg!A$3:C$5563,3,1) -> 1.434821429 | X36: 3854.14 | Y36: 3.202240823 | Z36: 4.501765478 | AB36: 3535 | AC36: -0.02906921363 | AD36: -0.04086600278
A37: 3850.14 | B37: 0.8299525085 | C37: 2.279382198 | D37: 2.78005887 | E37: 0.7616454754 | F37: =+VLOOKUP(A37,MILES_Reg!A$3:C$5563,3,1) -> 1.433928571 | X37: 3855.14 | Y37: 3.20596861 | Z37: 4.507006065 | AB37: 3536 | AC37: 1.14345825 | AD37: 1.607493365
A38: 3851.14 | B38: 0.8278997097 | C38: 2.272192971 | D38: 2.771290496 | E38: 0.7597616267 | F38: =+VLOOKUP(A38,MILES_Reg!A$3:C$5563,3,1) -> 1.433035714 | X38: 3856.14 | Y38: 3.205564255 | Z38: 4.506437616 | AB38: 3537 | AC38: 1.173051734 | AD38: 1.649096395
A39: 3852.14 | B39: 0.8268686596 | C39: 2.267814796 | D39: 2.765950635 | E39: 0.7588154345 | F39: =+VLOOKUP(A39,MILES_Reg!A$3:C$5563,3,1) -> 1.432142857 | X39: 3857.14 | Y39: 3.202033527 | Z39: 4.501474057 | AB39: 3538 | AC39: 1.194468132 | AD39: 1.679203937
A40: 3853.14 | B40: 0.8261147993 | C40: 2.264201256 | D40: 2.761543364 | E40: 0.7581236186 | F40: =+VLOOKUP(A40,MILES_Reg!A$3:C$5563,3,1) -> 1.43125 | X40: 3858.14 | Y40: 3.196760089 | Z40: 4.494060567 | AB40: 3539 | AC40: 1.175618632 | AD40: 1.652704985
A41: 3854.14 | B41: 0.8251182932 | C41: 2.259927005 | D41: 2.756330254 | E41: 0.7572091274 | F41: =+VLOOKUP(A41,MILES_Reg!A$3:C$5563,3,1) -> 1.430357143 | X41: 3859.14 | Y41: 3.191127587 | Z41: 4.486142299 | AB41: 3540 | AC41: 1.188425446 | AD41: 1.670709026
A42: 3855.14 | B42: 0.8212445213 | C42: 2.247782329 | D42: 2.741517946 | E42: 0.7536541759 | F42: =+VLOOKUP(A42,MILES_Reg!A$3:C$5563,3,1) -> 1.429464286 | X42: 3860.14 | Y42: 3.1865191 | Z42: 4.479663607 | AB42: 3541 | AC42: 1.208635742 | AD42: 1.699121009
A43: 3856.14 | B43: 0.8173429267 | C43: 2.235577075 | D43: 2.726631752 | E43: 0.7500736917 | F43: =+VLOOKUP(A43,MILES_Reg!A$3:C$5563,3,1) -> 1.428571429 | X43: 3861.14 | Y43: 3.184006148 | Z43: 4.476130856 | AB43: 3542 | AC43: 1.240904052 | AD43: 1.744484356
A44: 3857.14 | B44: 0.8167246766 | C44: 2.232361829 | D44: 2.722710262 | E44: 0.749506325 | F44: =+VLOOKUP(A44,MILES_Reg!A$3:C$5563,3,1) -> 1.427678571 | X44: 3862.14 | Y44: 3.183835789 | Z44: 4.475891363 | AB44: 3543 | AC44: 1.218022026 | AD44: 1.712316409
A45: 3858.14 | B45: 0.8178849193 | C45: 2.234007785 | D45: 2.72471776 | E45: 0.7505710771 | F45: =+VLOOKUP(A45,MILES_Reg!A$3:C$5563,3,1) -> 1.426785714 | X45: 3863.14 | Y45: 3.186120234 | Z45: 4.479102875 | AB45: 3544 | AC45: 1.207137123 | AD45: 1.697014225
A46: 3859.14 | B46: 0.8193636964 | C46: 2.236519921 | D46: 2.727781698 | E46: 0.7519281473 | F46: =+VLOOKUP(A46,MILES_Reg!A$3:C$5563,3,1) -> 1.425892857 | X46: 3864.14 | Y46: 3.190971695 | Z46: 4.485923142 | AB46: 3545 | AC46: 1.20195687 | AD46: 1.689731735
A47: 3860.14 | B47: 0.8307178143 | C47: 2.265964744 | D47: 2.76369421 | E47: 0.7623477947 | F47: =+VLOOKUP(A47,MILES_Reg!A$3:C$5563,3,1) -> 1.425 | X47: 3865.14 | Y47: 3.198501449 | Z47: 4.496508601 | AB47: 3546 | AC47: 1.21865043 | AD47: 1.713199831
A48: 3861.14 | B48: 0.8420604831 | C48: 2.295337135 | D48: 2.799518381 | E48: 0.7727569354 | F48: =+VLOOKUP(A48,MILES_Reg!A$3:C$5563,3,1) -> 1.424107143 | X48: 3866.14 | Y48: 3.20831371 | Z48: 4.510302847 | AB48: 3547 | AC48: 1.210697093 | AD48: 1.702018891
A49: 3862.14 | B49: 0.8474031789 | C49: 2.308324475 | D49: 2.815358449 | E49: 0.7776599148 | F49: =+VLOOKUP(A49,MILES_Reg!A$3:C$5563,3,1) -> 1.423214286 | X49: 3867.14 | Y49: 3.218670848 | Z49: 4.524863091 | AB49: 3548 | AC49: 1.21759793 | AD49: 1.711720208
A50: 3863.14 | B50: 0.8479340861 | C50: 2.308194664 | D50: 2.815200124 | E50: 0.7781471271 | F50: =+VLOOKUP(A50,MILES_Reg!A$3:C$5563,3,1) -> 1.422321429 | X50: 3868.14 | Y50: 3.227615761 | Z50: 4.537438004 | AB50: 3549 | AC50: 1.220034378 | AD50: 1.715145408
A51: 3864.14 | B51: 0.8484840182 | C51: 2.308115709 | D51: 2.815103827 | E51: 0.7786517985 | F51: =+VLOOKUP(A51,MILES_Reg!A$3:C$5563,3,1) -> 1.421428571 | X51: 3869.14 | Y51: 3.233191362 | Z51: 4.54527628 | AB51: 3550 | AC51: 1.240971356 | AD51: 1.744578973
A52: 3865.14 | B52: 0.8516301445 | C52: 2.315093348 | D52: 2.823614136 | E52: 0.7815389913 | F52: =+VLOOKUP(A52,MILES_Reg!A$3:C$5563,3,1) -> 1.420535714 | X52: 3870.14 | Y52: 3.23344181 | Z52: 4.545628364 | AB52: 3551 | AC52: 1.24140635 | AD52: 1.745190495
A53: 3866.14 | B53: 0.8547481071 | C53: 2.321983882 | D53: 2.832018208 | E53: 0.7844003383 | F53: =+VLOOKUP(A53,MILES_Reg!A$3:C$5563,3,1) -> 1.419642857 | X53: 3871.14 | Y53: 3.227090677 | Z53: 4.536699832 | AB53: 3552 | AC53: 1.24780368 | AD53: 1.754183973
A54: 3867.14 | B54: 0.8606356732 | C54: 2.336382626 | D54: 2.849579701 | E54: 0.7898033438 | F54: =+VLOOKUP(A54,MILES_Reg!A$3:C$5563,3,1) -> 1.41875 | X54: 3872.14 | Y54: 3.214659462 | Z54: 4.519223815 | AB54: 3553 | AC54: 1.242566647 | AD54: 1.746821661
A55: 3868.14 | B55: 0.8699794706 | C55: 2.36013693 | D55: 2.878551745 | E55: 0.7983781249 | F55: =+VLOOKUP(A55,MILES_Reg!A$3:C$5563,3,1) -> 1.417857143 | X55: 3873.14 | Y55: 3.196963732 | Z55: 4.494346852 | AB55: 3554 | AC55: 1.24311197 | AD55: 1.747588286
A56: 3869.14 | B56: 0.8796563991 | C56: 2.384760852 | D56: 2.908584424 | E56: 0.8072586195 | F56: =+VLOOKUP(A56,MILES_Reg!A$3:C$5563,3,1) -> 1.416964286 | X56: 3874.14 | Y56: 3.17481903 | Z56: 4.463215448 | AB56: 3555 | AC56: 1.244574694 | AD56: 1.749644608
A57: 3870.14 | B57: 0.8796566045 | C57: 2.383134241 | D57: 2.906600521 | E57: 0.8072588081 | F57: =+VLOOKUP(A57,MILES_Reg!A$3:C$5563,3,1) -> 1.416071429 | X57: 3875.14 | Y57: 3.149038062 | Z57: 4.426972117 | AB57: 3556 | AC57: 1.264186967 | AD57: 1.777215881
A58: 3871.14 | B58: 0.8791411767 | C58: 2.380112757 | D58: 2.902915354 | E58: 0.8067858011 | F58: =+VLOOKUP(A58,MILES_Reg!A$3:C$5563,3,1) -> 1.415178571 | X58: 3876.14 | Y58: 3.118887429 | Z58: 4.384585837 | AB58: 3557 | AC58: 1.238709302 | AD58: 1.741398939
A59: 3872.14 | B59: 0.8784789108 | C59: 2.376697021 | D59: 2.898749336 | E59: 0.8061780413 | F59: =+VLOOKUP(A59,MILES_Reg!A$3:C$5563,3,1) -> 1.414285714 | X59: 3877.14 | Y59: 3.079542305 | Z59: 4.329273781 | AB59: 3558 | AC59: 1.228901551 | AD59: 1.727611034
A60: 3873.14 | B60: 0.877676175 | C60: 2.37290506 | D60: 2.894124454 | E60: 0.8054413725 | F60: =+VLOOKUP(A60,MILES_Reg!A$3:C$5563,3,1) -> 1.413392857 | X60: 3878.14 | Y60: 3.025508664 | Z60: 4.253312355 | AB60: 3559 | AC60: 1.246049866 | AD60: 1.75171843
A61: 3874.14 | B61: 0.8773430381 | C61: 2.37038592 | D61: 2.891051973 | E61: 0.8051356536 | F61: =+VLOOKUP(A61,MILES_Reg!A$3:C$5563,3,1) -> 1.4125 | X61: 3879.14 | Y61: 2.95129254 | Z61: 4.148978045 | AB61: 3560 | AC61: 1.257725185 | AD61: 1.768131797
A62: 3875.14 | B62: 0.869240788 | C62: 2.346893018 | D62: 2.862398748 | E62: 0.7977002376 | F62: =+VLOOKUP(A62,MILES_Reg!A$3:C$5563,3,1) -> 1.411607143 | X62: 3880.14 | Y62: 2.851407711 | Z62: 4.008558227 | AB62: 3561 | AC62: 1.258452566 | AD62: 1.769154361
A63: 3876.14 | B63: 0.86024053 | C63: 2.321008163 | D63: 2.830828167 | E63: 0.7894407219 | F63: =+VLOOKUP(A63,MILES_Reg!A$3:C$5563,3,1) -> 1.410714286 | X63: 3881.14 | Y63: 2.724585535 | Z63: 3.83026942 | AB63: 3562 | AC63: 1.259919293 | AD63: 1.771216311
A64: 3877.14 | B64: 0.8531279112 | C64: 2.300247088 | D64: 2.805506827 | E64: 0.7829134882 | F64: =+VLOOKUP(A64,MILES_Reg!A$3:C$5563,3,1) -> 1.409821429 | X64: 3882.14 | Y64: 2.580718305 | Z64: 3.628018383 | AB64: 3563 | AC64: 1.25863361 | AD64: 1.769408876
A65: 3878.14 | B65: 0.852713039 | C65: 2.297559749 | D65: 2.802229202 | E65: 0.782532761 | F65: =+VLOOKUP(A65,MILES_Reg!A$3:C$5563,3,1) -> 1.408928571 | X65: 3883.14 | Y65: 2.431523785 | Z65: 3.418278149 | AB65: 3564 | AC65: 1.267422215 | AD65: 1.781764049
A66: 3879.14 | B66: 0.8525885376 | C66: 2.295656851 | D66: 2.799908324 | E66: 0.7824185064 | F66: =+VLOOKUP(A66,MILES_Reg!A$3:C$5563,3,1) -> 1.408035714 | X66: 3884.14 | Y66: 2.288719653 | Z66: =+Y66/$N$11 -> 3.217521633 | AB66: 3565 | AC66: 1.250270638 | AD66: 1.757652065
A67: 3880.14 | B67: 0.8444936023 | C67: 2.272309148 | D67: 2.771432192 | E67: 0.7749898031 | F67: =+VLOOKUP(A67,MILES_Reg!A$3:C$5563,3,1) -> 1.407142857 | X67: 3885.14 | Y67: 2.164020693 | Z67: 3.042217681 | AB67: 3566 | AC67: 1.250818565 | AD67: 1.758422351
A68: 3881.14 | B68: 0.8342506994 | C68: 2.243216568 | D68: 2.735949295 | E68: 0.7655899151 | F68: =+VLOOKUP(A68,MILES_Reg!A$3:C$5563,3,1) -> 1.40625 | X68: 3886.14 | Y68: 2.067557662 | Z68: 2.906608285 | AB68: 3567 | AC68: 1.251339466 | AD68: 1.759154642
A69: 3882.14 | B69: 0.8211492975 | C69: 2.206481658 | D69: =+C69/$N$9 -> 2.691145395 | E69: 0.7535667893 | F69: =+VLOOKUP(A69,MILES_Reg!A$3:C$5563,3,1) -> 1.405357143 | X69: 3887.14 | Y69: 2.005269522 | Z69: 2.819042541 | AB69: 3568 | AC69: 1.24546913 | AD69: 1.750902022
A70: 3883.14 | B70: 0.7909979652 | C70: =+E70*10^(0.4*$I$5*F70) -> 2.12401282 | D70: 2.590561901 | E70: =+B70/$N$10 -> 0.7258969822 | F70: =+VLOOKUP(A70,MILES_Reg!A$3:C$5563,3,1) -> 1.404464286 | X70: 3888.14 | Y70: 1.982409642 | Z70: 2.786905727 | AB70: 3569 | AC70: 1.248614981 | AD70: 1.755324514
A71: 3884.14 | B71: 0.7610782425 | C71: 2.042276996 | D71: 2.490872431 | E71: 0.6984397227 | F71: =+VLOOKUP(A71,MILES_Reg!A$3:C$5563,3,1) -> 1.403571429 | X71: 3889.14 | Y71: 2.004231376 | Z71: 2.817583097 | AB71: 3570 | AC71: 1.249133063 | AD71: 1.756052842
A72: 3885.14 | B72: 0.7365046386 | C72: 1.974987707 | D72: 2.408802743 | E72: 0.6758885838 | F72: =+VLOOKUP(A72,MILES_Reg!A$3:C$5563,3,1) -> 1.402678571 | X72: 3890.14 | Y72: 2.075976919 | Z72: 2.918444221 | AB72: 3571 | AC72: 1.203902411 | AD72: 1.69246681
A73: 3886.14 | B73: 0.7142892629 | C73: 1.914108728 | D73: 2.33455142 | E73: 0.6555015855 | F73: =+VLOOKUP(A73,MILES_Reg!A$3:C$5563,3,1) -> 1.401785714 | X73: 3891.14 | Y73: 2.196823163 | Z73: 3.088331959 | AB73: 3572 | AC73: 1.1620369 | AD73: 1.633611552
A74: 3887.14 | B74: 0.6932601435 | C74: 1.856488596 | D74: 2.264274764 | E74: 0.6362032119 | F74: =+VLOOKUP(A74,MILES_Reg!A$3:C$5563,3,1) -> 1.400892857 | X74: 3892.14 | Y74: 2.349896436 | Z74: 3.303525012 | AB74: 3573 | AC74: 1.164156024 | AD74: 1.636590653
A75: 3888.14 | B75: 0.6864444412 | C75: 1.836982492 | D75: 2.240484055 | E75: 0.6299484578 | F75: =+VLOOKUP(A75,MILES_Reg!A$3:C$5563,3,1) -> 1.4 | X75: 3893.14 | Y75: 2.515697844 | Z75: 3.536611496 | AB75: 3574 | AC75: 1.151343797 | AD75: 1.618579002
A76: 3889.14 | B76: 0.6789395839 | C76: 1.815659164 | D76: 2.214476961 | E76: 0.6230612678 | F76: =+VLOOKUP(A76,MILES_Reg!A$3:C$5563,3,1) -> 1.399107143 | X76: 3894.14 | Y76: 2.674728651 | Z76: 3.760179752 | AB76: 3575 | AC76: 1.168702094 | AD76: 1.642981597
A77: 3890.14 | B77: 0.6816031781 | C77: 1.821538581 | D77: 2.221647818 | E77: 0.6255056419 | F77: =+VLOOKUP(A77,MILES_Reg!A$3:C$5563,3,1) -> 1.398214286 | X77: 3895.14 | Y77: 2.807503085 | Z77: 3.946836345 | AB77: 3576 | AC77: 1.17778549 | AD77: 1.655751191
A78: 3891.14 | B78: 0.6911231756 | C78: 1.845719903 | D78: 2.251140678 | E78: 0.6342421214 | F78: =+VLOOKUP(A78,MILES_Reg!A$3:C$5563,3,1) -> 1.397321429 | X78: 3896.14 | Y78: 2.901601774 | Z78: 4.079121908 | AB78: 3577 | AC78: 1.158780769 | AD78: 1.629034027
A79: 3892.14 | B79: 0.7012434087 | C79: 1.871469279 | D79: 2.282546022 | E79: 0.6435294357 | F79: =+VLOOKUP(A79,MILES_Reg!A$3:C$5563,3,1) -> 1.396428571 | X79: 3897.14 | Y79: 2.963305088 | Z79: 4.165865493 | AB79: 3578 | AC79: 1.187159368 | AD79: 1.668929152
A80: 3893.14 | B80: 0.7446933879 | C80: 1.986071958 | D80: 2.422321701 | E80: 0.6834033799 | F80: =+VLOOKUP(A80,MILES_Reg!A$3:C$5563,3,1) -> 1.395535714 | X80: 3898.14 | Y80: 3.001951907 | Z80: 4.220195859 | AB80: 3579 | AC80: 1.23180362 | AD80: 1.731690812
A81: 3894.14 | B81: 0.7890972542 | C81: 2.103059623 | D81: 2.565006238 | E81: 0.7241527041 | F81: =+VLOOKUP(A81,MILES_Reg!A$3:C$5563,3,1) -> 1.394642857 | X81: 3899.14 | Y81: 3.026880965 | Z81: 4.25524156 | AB81: 3580 | AC81: 1.255847611 | AD81: 1.76549227
A82: 3895.14 | B82: 0.8192302145 | C82: 2.181878616 | D82: 2.661138183 | E82: 0.7518056513 | F82: =+VLOOKUP(A82,MILES_Reg!A$3:C$5563,3,1) -> 1.39375 | X82: 3900.14 | Y82: 3.047425815 | Z82: 4.284123865 | AB82: 3581 | AC82: 1.24911141 | AD82: 1.756022402
A83: 3896.14 | B83: 0.8349475331 | C83: 2.222221688 | D83: 2.710342794 | E83: 0.7662293978 | F83: =+VLOOKUP(A83,MILES_Reg!A$3:C$5563,3,1) -> 1.392857143 | X83: 3901.14 | Y83: 3.070083343 | Z83: 4.315976209 | AB83: 3582 | AC83: 1.242642277 | AD83: 1.746927983
A84: 3897.14 | B84: 0.8510591102 | C84: 2.263557298 | D84: 2.760757959 | E84: 0.7810149544 | F84: =+VLOOKUP(A84,MILES_Reg!A$3:C$5563,3,1) -> 1.391964286 | X84: 3902.14 | Y84: 3.093843817 | Z84: 4.349379093 | AB84: 3583 | AC84: 1.251114453 | AD84: 1.758838314
A85: 3898.14 | B85: 0.8556671085 | C85: 2.274260335 | D85: 2.773811967 | E85: 0.7852437037 | F85: =+VLOOKUP(A85,MILES_Reg!A$3:C$5563,3,1) -> 1.391071429 | X85: 3903.14 | Y85: 3.116469727 | Z85: 4.381186988 | AB85: 3584 | AC85: 1.235432445 | AD85: 1.736792276
A86: 3899.14 | B86: 0.8596119319 | C86: 2.283186277 | D86: 2.784698531 | E86: 0.7888638589 | F86: =+VLOOKUP(A86,MILES_Reg!A$3:C$5563,3,1) -> 1.390178571 | X86: 3904.14 | Y86: 3.135723623 | Z86: 4.408254448 | AB86: 3585 | AC86: 1.217221501 | AD86: 1.711191018
A87: 3900.14 | B87: 0.8659809921 | C87: 2.298533519 | D87: 2.803416865 | E87: 0.7947087306 | F87: =+VLOOKUP(A87,MILES_Reg!A$3:C$5563,3,1) -> 1.389285714 | X87: 3905.14 | Y87: 3.149369907 | Z87: 4.42743863 | AB87: 3586 | AC87: 1.222016802 | AD87: 1.717932335
A88: 3901.14 | B88: 0.8762003051 | C88: 2.32407133 | D88: 2.834564173 | E88: 0.8040869701 | F88: =+VLOOKUP(A88,MILES_Reg!A$3:C$5563,3,1) -> 1.388392857 | X88: 3906.14 | Y88: 3.156188004 | Z88: 4.437023629 | AB88: 3587 | AC88: 1.221156781 | AD88: =+AC88/$AE$1 -> 1.716723303
A89: 3902.14 | B89: 0.8866485608 | C89: 2.350180065 | D89: 2.86640781 | E89: 0.81367531 | F89: =+VLOOKUP(A89,MILES_Reg!A$3:C$5563,3,1) -> 1.3875 | X89: 3907.14 | Y89: 3.157643378 | Z89: 4.439069619 | AB89: 3588 | AC89: 1.212741997 | AD89: 1.704893654
A90: 3903.14 | B90: 0.8913786705 | C90: 2.361105723 | D90: 2.879733338 | E90: 0.8180161206 | F90: =+VLOOKUP(A90,MILES_Reg!A$3:C$5563,3,1) -> 1.386607143 | X90: 3908.14 | Y90: 3.155640819 | Z90: 4.436254387 | AB90: 3589 | AC90: 1.208840112 | AD90: 1.699408316
A91: 3904.14 | B91: 0.8954013139 | C91: 2.370142701 | D91: 2.89075533 | E91: 0.821707691 | F91: =+VLOOKUP(A91,MILES_Reg!A$3:C$5563,3,1) -> 1.385714286 | X91: 3909.14 | Y91: 3.152085094 | Z91: 4.431255687 | AB91: 3590 | AC91: 1.21622837 | AD91: 1.709794857
A92: 3905.14 | B92: 0.8972095374 | C92: 2.373308641 | D92: 2.894616683 | E92: 0.8233670935 | F92: =+VLOOKUP(A92,MILES_Reg!A$3:C$5563,3,1) -> 1.384821429 | X92: 3910.14 | Y92: 3.148879785 | Z92: 4.426749608 | AB92: 3591 | AC92: 1.243020059 | AD92: 1.747459076
A93: 3906.14 | B93: 0.8935424035 | C93: 2.361995562 | D93: 2.880818635 | E93: 0.8200017732 | F93: =+VLOOKUP(A93,MILES_Reg!A$3:C$5563,3,1) -> 1.383928571 | X93: 3911.14 | Y93: 3.147281218 | Z93: 4.424502316 | AB93: 3592 | AC93: 1.237385042 | AD93: 1.739537272
A94: 3907.14 | B94: 0.8896197052 | C94: 2.350021717 | D94: 2.866214681 | E94: 0.8164019222 | F94: =+VLOOKUP(A94,MILES_Reg!A$3:C$5563,3,1) -> 1.383035714 | X94: 3912.14 | Y94: 3.1468329 | Z94: 4.423872062 | AB94: 3593 | AC94: 1.189815875 | AD94: 1.672663714
A95: 3908.14 | B95: 0.8922621329 | C95: 2.355393734 | D95: 2.872766685 | E95: 0.818826872 | F95: =+VLOOKUP(A95,MILES_Reg!A$3:C$5563,3,1) -> 1.382142857 | X95: 3913.14 | Y95: 3.146798187 | Z95: 4.423823262 | AB95: 3594 | AC95: 1.16266335 | AD95: 1.634492226
A96: 3909.14 | B96: 0.8963699881 | C96: 2.364623121 | D96: 2.884023349 | E96: 0.822596641 | F96: =+VLOOKUP(A96,MILES_Reg!A$3:C$5563,3,1) -> 1.38125 | X96: 3914.14 | Y96: 3.146440451 | Z96: 4.423320351 | AB96: 3595 | AC96: 1.164198617 | AD96: 1.63665053
A97: 3910.14 | B97: 0.9007889562 | C97: 2.374658973 | D97: 2.896263622 | E97: 0.8266519177 | F97: =+VLOOKUP(A97,MILES_Reg!A$3:C$5563,3,1) -> 1.380357143 | X97: 3915.14 | Y97: 3.145023806 | Z97: 4.421328806 | AB97: 3596 | AC97: 1.182395756 | AD97: 1.662232384
A98: 3911.14 | B98: 0.9062397047 | C98: 2.387398151 | D98: 2.911801019 | E98: 0.8316540569 | F98: =+VLOOKUP(A98,MILES_Reg!A$3:C$5563,3,1) -> 1.379464286 | X98: 3916.14 | Y98: 3.142216807 | Z98: 4.417382678 | AB98: 3597 | AC98: 1.21290911 | AD98: 1.705128583
A99: 3912.14 | B99: 0.9121940231 | C99: 2.401444539 | D99: 2.92893276 | E99: 0.837118321 | F99: =+VLOOKUP(A99,MILES_Reg!A$3:C$5563,3,1) -> 1.378571429 | X99: 3917.14 | Y99: 3.138758286 | Z99: 4.412520631 | AB99: 3598 | AC99: 1.235500058 | AD99: 1.736887329
A100: 3913.14 | B100: 0.9100503169 | C100: 2.394166312 | D100: 2.920055836 | E100: 0.8351510468 | F100: =+VLOOKUP(A100,MILES_Reg!A$3:C$5563,3,1) -> 1.377678571 | X100: 3918.14 | Y100: 3.135562132 | Z100: 4.408027422 | AB100: 3599 | AC100: 1.24680483 | AD100: 1.752779772
A101: 3914.14 | B101: 0.9051868918 | C101: 2.379746726 | D101: 2.902468922 | E101: 0.830687893 | F101: =+VLOOKUP(A101,MILES_Reg!A$3:C$5563,3,1) -> 1.376785714 | X101: 3919.14 | Y101: 3.133542215 | Z101: 4.405187788 | AB101: 3600 | AC101: 1.239019241 | AD101: 1.741834657
A102: 3915.14 | B102: 0.9015916494 | C102: 2.368677495 | D102: 2.888968284 | E102: 0.8273885474 | F102: =+VLOOKUP(A102,MILES_Reg!A$3:C$5563,3,1) -> 1.375892857 | X102: 3920.14 | Y102: 3.133610161 | Z102: 4.405283307 | AB102: 3601 | AC102: 1.212912165 | AD102: 1.705132878
A103: 3916.14 | B103: 0.9078760205 | C103: 2.383560446 | D103: 2.907120344 | E103: 0.8331557 | F103: =+VLOOKUP(A103,MILES_Reg!A$3:C$5563,3,1) -> 1.375 | X103: 3921.14 | Y103: 3.13545508 | Z103: 4.407876926 | AB103: 3602 | AC103: 1.193115314 | AD103: 1.677302123
A104: 3917.14 | B104: 0.9144217876 | C104: 2.399107792 | D104: 2.926082735 | E104: 0.8391627352 | F104: =+VLOOKUP(A104,MILES_Reg!A$3:C$5563,3,1) -> 1.374107143 | X104: 3922.14 | Y104: 3.135530948 | Z104: 4.407983583 | AB104: 3603 | AC104: 1.166133572 | AD104: 1.639370724
A105: 3918.14 | B105: 0.9182118548 | C105: 2.407407798 | D105: 2.936205875 | E105: 0.842640871 | F105: =+VLOOKUP(A105,MILES_Reg!A$3:C$5563,3,1) -> 1.373214286 | X105: 3923.14 | Y105: 3.129762605 | Z105: 4.399874346 | AB105: 3604 | AC105: 1.163283363 | AD105: 1.63536385
A106: 3919.14 | B106: 0.9204251826 | C106: 2.411564217 | D106: 2.941275271 | E106: 0.8446720367 | F106: =+VLOOKUP(A106,MILES_Reg!A$3:C$5563,3,1) -> 1.372321429 | X106: 3924.14 | Y106: 3.11407493 | Z106: 4.377820341 | AB106: 3605 | AC106: 1.188752476 | AD106: 1.67116877
A107: 3920.14 | B107: 0.9223664213 | C107: 2.415001442 | D107: 2.945467498 | E107: 0.846453507 | F107: =+VLOOKUP(A107,MILES_Reg!A$3:C$5563,3,1) -> 1.371428571 | X107: 3925.14 | Y107: 3.084397673 | Z107: 4.336099541 | AB107: 3606 | AC107: 1.205306287 | AD107: 1.694440404
A108: 3921.14 | B108: 0.9192267114 | C108: 2.405138651 | D108: 2.9334383 | E108: 0.8435722026 | F108: =+VLOOKUP(A108,MILES_Reg!A$3:C$5563,3,1) -> 1.370535714 | X108: 3926.14 | Y108: 3.039313212 | Z108: 4.272719028 | AB108: 3607 | AC108: 1.199697528 | AD108: 1.686555513
A109: 3922.14 | B109: 0.9157628715 | C109: 2.394440693 | D109: 2.920390487 | E109: 0.8403934447 | F109: =+VLOOKUP(A109,MILES_Reg!A$3:C$5563,3,1) -> 1.369642857 | X109: 3927.14 | Y109: 2.984423546 | Z109: 4.195554186 | AB109: 3608 | AC109: 1.1912173 | AD109: 1.674633862
A110: 3923.14 | B110: 0.9161297278 | C110: 2.393765484 | D110: 2.919566965 | E110: 0.840730108 | F110: =+VLOOKUP(A110,MILES_Reg!A$3:C$5563,3,1) -> 1.36875 | X110: 3928.14 | Y110: 2.926478795 | Z110: 4.114094454 | AB110: 3609 | AC110: 1.182609857 | AD110: 1.662533371
A111: 3924.14 | B111: 0.9196469598 | C111: 2.401316116 | D111: 2.928776127 | E111: 0.8439578635 | F111: =+VLOOKUP(A111,MILES_Reg!A$3:C$5563,3,1) -> 1.367857143 | X111: 3929.14 | Y111: 2.872229021 | Z111: 4.037829185 | AB111: 3610 | AC111: 1.215737007 | AD111: 1.70910409
A112: 3925.14 | B112: 0.9231429589 | C112: 2.408799925 | D112: 2.937903789 | E112: 0.8471661337 | F112: =+VLOOKUP(A112,MILES_Reg!A$3:C$5563,3,1) -> 1.366964286 | X112: 3930.14 | Y112: 2.828421212 | Z112: 3.97624341 | AB112: 3611 | AC112: 1.228339573 | AD112: 1.726820994
A113: 3926.14 | B113: 0.9171970058 | C113: 2.391651888 | D113: 2.916989108 | E113: 0.8417095465 | F113: =+VLOOKUP(A113,MILES_Reg!A$3:C$5563,3,1) -> 1.366071429 | X113: 3931.14 | Y113: 2.800123585 | Z113: 3.936462117 | AB113: 3612 | AC113: 1.200155409 | AD113: 1.687199211
A114: 3927.14 | B114: 0.9106836527 | C114: 2.373047608 | D114: 2.894298313 | E114: 0.8357322576 | F114: =+VLOOKUP(A114,MILES_Reg!A$3:C$5563,3,1) -> 1.365178571 | X114: 3932.14 | Y114: 2.787961845 | Z114: 3.919364932 | AB114: 3613 | AC114: 1.193626471 | AD114: 1.678020717
A115: 3928.14 | B115: 0.9001401652 | C115: 2.343973096 | D115: 2.858837452 | E115: 0.8260565237 | F115: =+VLOOKUP(A115,MILES_Reg!A$3:C$5563,3,1) -> 1.364285714 | X115: 3933.14 | Y115: 2.791835088 | Z115: 3.924810005 | AB115: 3614 | AC115: 1.191768793 | AD115: 1.675409161
A116: 3929.14 | B116: 0.88443592 | C116: 2.301507665 | D116: 2.807044296 | E116: 0.8116447747 | F116: =+VLOOKUP(A116,MILES_Reg!A$3:C$5563,3,1) -> 1.363392857 | X116: 3934.14 | Y116: 2.81164243 | Z116: 3.952655508 | AB116: 3615 | AC116: 1.191780649 | AD116: 1.675425828
A117: 3930.14 | B117: 0.8686169278 | C117: 2.258800698 | D117: 2.75495655 | E117: 0.7971277225 | F117: =+VLOOKUP(A117,MILES_Reg!A$3:C$5563,3,1) -> 1.3625 | X117: 3935.14 | Y117: 2.847279622 | Z117: 4.002754888 | AB117: 3616 | AC117: 1.187133996 | AD117: 1.668893483
A118: 3931.14 | B118: 0.8575918497 | C118: 2.228608799 | D118: 2.718132863 | E118: 0.7870100341 | F118: =+VLOOKUP(A118,MILES_Reg!A$3:C$5563,3,1) -> 1.361607143 | X118: 3936.14 | Y118: 2.896817832 | Z118: 4.072396559 | AB118: 3617 | AC118: 1.18207014 | AD118: 1.661774627
A119: 3932.14 | B119: 0.8472214739 | C119: 2.200157253 | D119: 2.683431804 | E119: 0.7774931645 | F119: =+VLOOKUP(A119,MILES_Reg!A$3:C$5563,3,1) -> 1.360714286 | X119: 3937.14 | Y119: 2.953499843 | Z119: 4.15208111 | AB119: 3618 | AC119: 1.196695123 | AD119: 1.682334681
A120: 3933.14 | B120: 0.8384240631 | C120: 2.175825554 | D120: 2.653755538 | E120: 0.7694198012 | F120: =+VLOOKUP(A120,MILES_Reg!A$3:C$5563,3,1) -> 1.359821429 | X120: 3938.14 | Y120: 3.009778709 | Z120: 4.231198913 | AB120: 3619 | AC120: 1.211271778 | AD120: 1.702826795
A121: 3934.14 | B121: 0.8328080878 | C121: 2.159776664 | D121: 2.634181436 | E121: 0.7642660338 | F121: =+VLOOKUP(A121,MILES_Reg!A$3:C$5563,3,1) -> 1.358928571 | X121: 3939.14 | Y121: 3.05810754 | Z121: 4.299140418 | AB121: 3620 | AC121: 1.203299101 | AD121: 1.691618667
A122: 3935.14 | B122: 0.8261419682 | C122: 2.141027111 | D122: 2.611313459 | E122: 0.7581485515 | F122: =+VLOOKUP(A122,MILES_Reg!A$3:C$5563,3,1) -> 1.358035714 | X122: 3940.14 | Y122: 3.090945617 | Z122: 4.345304754 | AB122: 3621 | AC122: 1.209052141 | AD122: 1.69970639
A123: 3936.14 | B123: 0.8425585484 | C123: 2.182082379 | D123: 2.661386703 | E123: 0.7732140087 | F123: =+VLOOKUP(A123,MILES_Reg!A$3:C$5563,3,1) -> 1.357142857 | X123: 3941.14 | Y123: 3.104113582 | Z123: 4.363816507 | AB123: 3622 | AC123: 1.232048029 | AD123: 1.732034406
A124: 3937.14 | B124: 0.8642629951 | C124: 2.23676595 | D124: 2.728081769 | E124: 0.7931321287 | F124: =+VLOOKUP(A124,MILES_Reg!A$3:C$5563,3,1) -> 1.35625 | X124: 3942.14 | Y124: 3.102327213 | Z124: 4.361305199 | AB124: 3623 | AC124: 1.239737736 | AD124: 1.74284473
A125: 3938.14 | B125: 0.8842490103 | C125: 2.286929509 | D125: 2.789263982 | E125: 0.8114732481 | F125: =+VLOOKUP(A125,MILES_Reg!A$3:C$5563,3,1) -> 1.355357143 | X125: 3943.14 | Y125: 3.091757169 | Z125: 4.346445648 | AB125: 3624 | AC125: 1.210151593 | AD125: 1.701252018
A126: 3939.14 | B126: 0.8985451001 | C126: 2.322317783 | D126: 2.832425451 | E126: 0.8245927362 | F126: =+VLOOKUP(A126,MILES_Reg!A$3:C$5563,3,1) -> 1.354464286 | X126: 3944.14 | Y126: 3.078574032 | Z126: 4.327912566 | AB126: 3625 | AC126: 1.187766292 | AD126: 1.669782376
A127: 3940.14 | B127: 0.9132776152 | C127: 2.358783884 | D127: 2.876901497 | E127: 0.8381127309 | F127: =+VLOOKUP(A127,MILES_Reg!A$3:C$5563,3,1) -> 1.353571429 | X127: 3945.14 | Y127: 3.068944432 | Z127: 4.314375109 | AB127: 3626 | AC127: 1.19150245 | AD127: 1.675034731
A128: 3941.14 | B128: 0.9201844712 | C128: 2.375001073 | D128: 2.896680866 | E128: 0.8444511365 | F128: =+VLOOKUP(A128,MILES_Reg!A$3:C$5563,3,1) -> 1.352678571 | X128: 3946.14 | Y128: 3.066876251 | Z128: 4.311467623 | AB128: 3627 | AC128: 1.19500321 | AD128: 1.67995616
A129: 3942.14 | B129: 0.9243164589 | C129: 2.38403797 | D129: 2.907702759 | E129: 0.8482430519 | F129: =+VLOOKUP(A129,MILES_Reg!A$3:C$5563,3,1) -> 1.351785714 | X129: 3947.14 | Y129: 3.070664698 | Z129: 4.316793487 | AB129: 3628 | AC129: 1.198575267 | AD129: 1.684977819
A130: 3943.14 | B130: 0.9283641831 | C130: 2.392844242 | D130: 2.918443368 | E130: 0.8519576389 | F130: =+VLOOKUP(A130,MILES_Reg!A$3:C$5563,3,1) -> 1.350892857 | X130: 3948.14 | Y130: 3.077670625 | Z130: =+Y130/$N$11 -> 4.32664254 | AB130: 3629 | AC130: 1.195205363 | AD130: 1.680240351
A131: 3944.14 | B131: 0.9318288998 | C131: 2.400135719 | D131: 2.92733645 | E131: 0.8551372013 | F131: =+VLOOKUP(A131,MILES_Reg!A$3:C$5563,3,1) -> 1.35 | X131: 3949.14 | Y131: 3.085254925 | Z131: 4.337304682 | AB131: 3630 | AC131: 1.1713247 | AD131: 1.646668502
A132: 3945.14 | B132: 0.9354745403 | C132: 2.407881823 | D132: 2.936784022 | E132: 0.8584827971 | F132: =+VLOOKUP(A132,MILES_Reg!A$3:C$5563,3,1) -> 1.349107143 | X132: 3950.14 | Y132: 3.090779279 | Z132: 4.345070914 | AB132: 3631 | AC132: 1.172326852 | AD132: 1.648077344
A133: 3946.14 | B133: 0.9363198481 | C133: 2.40841319 | D133: =+C133/$N$9 -> 2.937432106 | E133: 0.8592585341 | F133: =+VLOOKUP(A133,MILES_Reg!A$3:C$5563,3,1) -> 1.348214286 | X133: 3951.14 | Y133: 3.09203805 | Z133: 4.346840516 | AB133: 3632 | AC133: 1.187876399 | AD133: 1.669937166
A134: 3947.14 | B134: 0.9356655951 | C134: =+E134*10^(0.4*$I$5*F134) -> 2.405088155 | D134: 2.933376712 | E134: =+B134/$N$10 -> 0.8586581276 | F134: =+VLOOKUP(A134,MILES_Reg!A$3:C$5563,3,1) -> 1.347321429 | X134: 3952.14 | Y134: 3.087970606 | Z134: 4.341122432 | AB134: 3633 | AC134: 1.184098033 | AD134: 1.664625474
A135: 3948.14 | B135: 0.9350005383 | C135: 2.401738784 | D135: 2.929291636 | E135: 0.8580478066 | F135: =+VLOOKUP(A135,MILES_Reg!A$3:C$5563,3,1) -> 1.346428571 | X135: 3953.14 | Y135: 3.07770359 | Z135: 4.326688884 | AB135: 3634 | AC135: 1.194399532 | AD135: 1.679107499
A136: 3949.14 | B136: 0.9339413829 | C136: 2.397381232 | D136: 2.923976928 | E136: 0.8570758222 | F136: =+VLOOKUP(A136,MILES_Reg!A$3:C$5563,3,1) -> 1.345535714 | X136: 3954.14 | Y136: 3.060363636 | Z136: 4.302312077 | AB136: 3635 | AC136: 1.22452199 | AD136: 1.721454171
A137: 3950.14 | B137: 0.9327805602 | C137: 2.392767712 | D137: 2.918350027 | E137: 0.8560105379 | F137: =+VLOOKUP(A137,MILES_Reg!A$3:C$5563,3,1) -> 1.344642857 | X137: 3955.14 | Y137: 3.035076847 | Z137: 4.266763472 | AB137: 3636 | AC137: 1.228870496 | AD137: 1.727567375
A138: 3951.14 | B138: 0.9335734523 | C138: 2.393167619 | D138: 2.918837776 | E138: 0.8567381732 | F138: =+VLOOKUP(A138,MILES_Reg!A$3:C$5563,3,1) -> 1.34375 | X138: 3956.14 | Y138: 3.000679395 | Z138: 4.218406939 | AB138: 3637 | AC138: 1.220860639 | AD138: 1.71630698
A139: 3952.14 | B139: 0.9359213579 | C139: 2.397549343 | D139: 2.924181966 | E139: 0.8588928406 | F139: =+VLOOKUP(A139,MILES_Reg!A$3:C$5563,3,1) -> 1.342857143 | X139: 3957.14 | Y139: 2.955240211 | Z139: 4.154527749 | AB139: 3638 | AC139: 1.222700821 | AD139: 1.71889394
A140: 3953.14 | B140: 0.9382613746 | C140: 2.401903779 | D140: 2.929492874 | E140: 0.8610402685 | F140: =+VLOOKUP(A140,MILES_Reg!A$3:C$5563,3,1) -> 1.341964286 | X140: 3958.14 | Y140: 2.896702736 | Z140: 4.072234755 | AB140: 3639 | AC140: 1.210594701 | AD140: 1.701874947
A141: 3954.14 | B141: 0.9396804011 | C141: 2.403895075 | D141: 2.931921567 | E141: 0.8623425058 | F141: =+VLOOKUP(A141,MILES_Reg!A$3:C$5563,3,1) -> 1.341071429 | X141: 3959.14 | Y141: 2.823010426 | Z141: 3.968636833 | AB141: 3640 | AC141: 1.213430675 | AD141: 1.705861808
A142: 3955.14 | B142: 0.9410732581 | C142: 2.405815634 | D142: 2.934263985 | E142: 0.8636207273 | F142: =+VLOOKUP(A142,MILES_Reg!A$3:C$5563,3,1) -> 1.340178571 | X142: 3960.14 | Y142: 2.732109617 | Z142: 3.840846905 | AB142: 3641 | AC142: 1.226873635 | AD142: 1.724760154
A143: 3956.14 | B143: 0.9415034228 | C143: 2.405273048 | D143: 2.933602218 | E143: 0.8640154885 | F143: =+VLOOKUP(A143,MILES_Reg!A$3:C$5563,3,1) -> 1.339285714 | X143: 3961.14 | Y143: 2.623513673 | Z143: 3.688180851 | AB143: 3642 | AC143: 1.222022539 | AD143: 1.7179404
A144: 3957.14 | B144: 0.94068761 | C144: 2.401549137 | D144: 2.929060333 | E144: 0.863266819 | F144: =+VLOOKUP(A144,MILES_Reg!A$3:C$5563,3,1) -> 1.338392857 | X144: 3962.14 | Y144: 2.500882768 | Z144: 3.515784206 | AB144: 3643 | AC144: 1.22277742 | AD144: 1.719001625
A145: 3958.14 | B145: 0.9399204412 | C145: 2.39795329 | D145: 2.924674642 | E145: 0.86256279 | F145: =+VLOOKUP(A145,MILES_Reg!A$3:C$5563,3,1) -> 1.3375 | X145: 3963.14 | Y145: 2.368555319 | Z145: 3.329755992 | AB145: 3644 | AC145: 1.21486402 | AD145: 1.70787683
A146: 3959.14 | B146: 0.9275265447 | C146: 2.364719014 | D146: 2.884140306 | E146: 0.8511889401 | F146: =+VLOOKUP(A146,MILES_Reg!A$3:C$5563,3,1) -> 1.336607143 | X146: 3964.14 | Y146: 2.230869733 | Z146: 3.136195215 | AB146: 3645 | AC146: 1.214913956 | AD146: 1.70794703
A147: 3960.14 | B147: 0.9131173867 | C147: 2.326394592 | D147: 2.83739775 | E147: 0.8379656895 | F147: =+VLOOKUP(A147,MILES_Reg!A$3:C$5563,3,1) -> 1.335714286 | X147: 3965.14 | Y147: 2.092168608 | Z147: 2.941206778 | AB147: 3646 | AC147: 1.224944939 | AD147: 1.722048759
A148: 3961.14 | B148: 0.898744953 | C148: 2.288214869 | D148: 2.790831677 | E148: 0.8247761408 | F148: =+VLOOKUP(A148,MILES_Reg!A$3:C$5563,3,1) -> 1.334821429 | X148: 3966.14 | Y148: 1.959071884 | Z148: 2.754097103 | AB148: 3647 | AC148: 1.216014242 | AD148: 1.709493832
A149: 3962.14 | B149: 0.884287687 | C149: 2.249870328 | D149: 2.744064583 | E149: 0.8115087416 | F149: =+VLOOKUP(A149,MILES_Reg!A$3:C$5563,3,1) -> 1.333928571 | X149: 3967.14 | Y149: 1.844225993 | Z149: 2.592644766 | AB149: 3648 | AC149: 1.200503919 | AD149: 1.687689152
A150: 3963.14 | B150: 0.8704579994 | C150: 2.21317269 | D150: 2.699306142 | E150: 0.7988172697 | F150: =+VLOOKUP(A150,MILES_Reg!A$3:C$5563,3,1) -> 1.333035714 | X150: 3968.14 | Y150: 1.761263076 | Z150: 2.476014063 | AB150: 3649 | AC150: 1.198827329 | AD150: 1.685332172
A151: 3964.14 | B151: 0.8343713498 | C151: 2.11997352 | D151: 2.58563535 | E151: 0.7657006357 | F151: =+VLOOKUP(A151,MILES_Reg!A$3:C$5563,3,1) -> 1.332142857 | X151: 3969.14 | Y151: 1.723815168 | Z151: 2.423369147 | AB151: 3650 | AC151: 1.203365792 | AD151: 1.691712422
A152: 3965.14 | B152: 0.7923064095 | C152: 2.011721205 | D152: 2.453604922 | E152: 0.7270977384 | F152: =+VLOOKUP(A152,MILES_Reg!A$3:C$5563,3,1) -> 1.33125 | X152: 3970.14 | Y152: 1.745498861 | Z152: 2.453852457 | AB152: 3651 | AC152: 1.193254907 | AD152: =+AC152/$AE$1 -> 1.677498366
A153: 3966.14 | B153: 0.7486096902 | C153: 1.899475256 | D153: 2.316703639 | E153: 0.6869973614 | F153: =+VLOOKUP(A153,MILES_Reg!A$3:C$5563,3,1) -> 1.330357143 | X153: 3971.14 | Y153: 1.831524708 | Z153: 2.574789079 | AB153: 3652 | AC153: 1.201245098 | AD153: 1.688731115
A154: 3967.14 | B154: 0.700555114 | C154: 1.776331737 | D154: 2.166511085 | E154: 0.6428977892 | F154: =+VLOOKUP(A154,MILES_Reg!A$3:C$5563,3,1) -> 1.329464286 | X154: 3972.14 | Y154: 1.96485843 | Z154: 2.76223193 | AB154: 3653 | AC154: 1.21666634 | AD154: 1.710410562
A155: 3968.14 | B155: 0.6507784488 | C155: 1.64899182 | D155: 2.011200376 | E155: 0.59721786 | F155: =+VLOOKUP(A155,MILES_Reg!A$3:C$5563,3,1) -> 1.328571429 | X155: 3973.14 | Y155: 2.124827405 | Z155: 2.987119079 | AB155: 3654 | AC155: 1.216708801 | AD155: 1.710470254
A156: 3969.14 | B156: 0.6322450705 | C156: 1.600937443 | D156: 1.952590637 | E156: 0.5802098221 | F156: =+VLOOKUP(A156,MILES_Reg!A$3:C$5563,3,1) -> 1.327678571 | X156: 3974.14 | Y156: 2.290759203 | Z156: 3.220388867 | AB156: 3655 | AC156: 1.213203363 | AD156: 1.70554225
A157: 3970.14 | B157: 0.626363762 | C157: 1.584962917 | D157: 1.933107234 | E157: 0.574812559 | F157: =+VLOOKUP(A157,MILES_Reg!A$3:C$5563,3,1) -> 1.326785714 | X157: 3975.14 | Y157: 2.441992636 | Z157: 3.43299544 | AB157: 3656 | AC157: 1.209636619 | AD157: 1.700528059
A158: 3971.14 | B158: 0.6308032406 | C158: 1.595107544 | D158: 1.945480174 | E158: 0.5788866582 | F158: =+VLOOKUP(A158,MILES_Reg!A$3:C$5563,3,1) -> 1.325892857 | X158: 3976.14 | Y158: 2.564003298 | Z158: 3.604520137 | AB158: 3657 | AC158: 1.22047251 | AD158: 1.715761342
A159: 3972.14 | B159: 0.6799010781 | C159: 1.718087802 | D159: 2.095473605 | E159: 0.6239436287 | F159: =+VLOOKUP(A159,MILES_Reg!A$3:C$5563,3,1) -> 1.325 | X159: 3977.14 | Y159: 2.658506468 | Z159: 3.737374327 | AB159: 3658 | AC159: 1.238033849 | AD159: 1.740449375
A160: 3973.14 | B160: 0.7316404715 | C160: 1.847570065 | D160: 2.253397236 | E160: 0.6714247491 | F160: =+VLOOKUP(A160,MILES_Reg!A$3:C$5563,3,1) -> 1.324107143 | X160: 3978.14 | Y160: 2.729873569 | Z160: 3.837703431 | AB160: 3659 | AC160: 1.252961515 | AD160: 1.761434946
A161: 3974.14 | B161: 0.7802079058 | C161: 1.968870329 | D161: 2.401341655 | E161: 0.7159949699 | F161: =+VLOOKUP(A161,MILES_Reg!A$3:C$5563,3,1) -> 1.323214286 | X161: 3979.14 | Y161: 2.782475911 | Z161: 3.911652711 | AB161: 3660 | AC161: 1.258303776 | AD161: 1.76894519
A162: 3975.14 | B162: 0.8266865454 | C162: 2.084736683 | D162: 2.542658581 | E162: 0.7586483087 | F162: =+VLOOKUP(A162,MILES_Reg!A$3:C$5563,3,1) -> 1.322321429 | X162: 3980.14 | Y162: 2.820684027 | Z162: 3.965366341 | AB162: 3661 | AC162: 1.234148348 | AD162: 1.734987071
A163: 3976.14 | B163: 0.8695034955 | C163: 2.191216263 | D163: 2.672526886 | E163: 0.7979413237 | F163: =+VLOOKUP(A163,MILES_Reg!A$3:C$5563,3,1) -> 1.321428571 | X163: 3981.14 | Y163: 2.848430866 | Z163: 4.004373327 | AB163: 3662 | AC163: 1.20426571 | AD163: 1.692977543
A164: 3977.14 | B164: 0.8847008313 | C164: 2.227993488 | D164: 2.717382395 | E164: 0.8118878832 | F164: =+VLOOKUP(A164,MILES_Reg!A$3:C$5563,3,1) -> 1.320535714 | X164: 3982.14 | Y164: 2.868491421 | Z164: 4.032574802 | AB164: 3663 | AC164: 1.196541213 | AD164: 1.682118311
A165: 3978.14 | B165: 0.8977659616 | C165: 2.259353511 | D165: 2.755630791 | E165: 0.8238777227 | F165: =+VLOOKUP(A165,MILES_Reg!A$3:C$5563,3,1) -> 1.319642857 | X165: 3983.14 | Y165: 2.883451289 | Z165: 4.053605643 | AB165: 3664 | AC165: 1.18642591 | AD165: 1.667898043
A166: 3979.14 | B166: 0.9073169348 | C166: 2.28183187 | D166: 2.783046623 | E166: 0.8326426285 | F166: =+VLOOKUP(A166,MILES_Reg!A$3:C$5563,3,1) -> 1.31875 | X166: 3984.14 | Y166: 2.895896071 | Z166: 4.071100733 | AB166: 3665 | AC166: 1.184637347 | AD166: 1.665383651
A167: 3980.14 | B167: 0.9139642242 | C167: 2.296980944 | D167: 2.80152326 | E167: 0.8387428303 | F167: =+VLOOKUP(A167,MILES_Reg!A$3:C$5563,3,1) -> 1.317857143 | X167: 3985.14 | Y167: 2.908409609 | Z167: 4.088692481 | AB167: 3666 | AC167: 1.201551913 | AD167: 1.68916244
A168: 3981.14 | B168: 0.9205594949 | C168: 2.311977638 | D168: 2.819814046 | E168: 0.8447952948 | F168: =+VLOOKUP(A168,MILES_Reg!A$3:C$5563,3,1) -> 1.316964286 | X168: 3986.14 | Y168: 2.922621103 | Z168: 4.108671244 | AB168: 3667 | AC168: 1.198957721 | AD168: 1.685515479
A169: 3982.14 | B169: 0.9250498476 | C169: 2.321669921 | D169: 2.831635283 | E169: 0.848916081 | F169: =+VLOOKUP(A169,MILES_Reg!A$3:C$5563,3,1) -> 1.316071429 | X169: 3987.14 | Y169: 2.937633487 | Z169: 4.129775913 | AB169: 3668 | AC169: 1.190140593 | AD169: 1.673120209
A170: 3983.14 | B170: 0.9293270904 | C170: 2.330813407 | D170: 2.842787178 | E170: 0.8528412968 | F170: =+VLOOKUP(A170,MILES_Reg!A$3:C$5563,3,1) -> 1.315178571 | X170: 3988.14 | Y170: 2.952136504 | Z170: 4.150164505 | AB170: 3669 | AC170: 1.218087823 | AD170: 1.712408907
A171: 3984.14 | B171: 0.9327295174 | C171: 2.337750737 | D171: 2.851248323 | E171: 0.8559636961 | F171: =+VLOOKUP(A171,MILES_Reg!A$3:C$5563,3,1) -> 1.314285714 | X171: 3989.14 | Y171: 2.964819916 | Z171: 4.167995065 | AB171: 3670 | AC171: 1.236034437 | AD171: 1.737638567
A172: 3985.14 | B172: 0.9350580547 | C172: 2.341987802 | D172: 2.856416079 | E172: 0.8581005893 | F172: =+VLOOKUP(A172,MILES_Reg!A$3:C$5563,3,1) -> 1.313392857 | X172: 3990.14 | Y172: 2.974374106 | Z172: 4.18142651 | AB172: 3671 | AC172: 1.21201849 | AD172: 1.703876535
A173: 3986.14 | B173: 0.9373932859 | C173: 2.346234752 | D173: 2.861595891 | E173: 0.8602436254 | F173: =+VLOOKUP(A173,MILES_Reg!A$3:C$5563,3,1) -> 1.3125 | X173: 3991.14 | Y173: 2.979830331 | Z173: 4.189096966 | AB173: 3672 | AC173: 1.217235854 | AD173: 1.711211196
A174: 3987.14 | B174: 0.938213189 | C174: 2.346684635 | D174: 2.862144593 | E174: 0.8609960486 | F174: =+VLOOKUP(A174,MILES_Reg!A$3:C$5563,3,1) -> 1.311607143 | X174: 3992.14 | Y174: 2.981121894 | Z174: 4.190912667 | AB174: 3673 | AC174: 1.239451405 | AD174: 1.7424422
A175: 3988.14 | B175: 0.9386779149 | C175: 2.346245039 | D175: 2.861608438 | E175: 0.8614225265 | F175: =+VLOOKUP(A175,MILES_Reg!A$3:C$5563,3,1) -> 1.310714286 | X175: 3993.14 | Y175: 2.978329635 | Z175: 4.18698726 | AB175: 3674 | AC175: 1.233553618 | AD175: 1.73415099
A176: 3989.14 | B176: 0.9405505159 | C176: 2.349321563 | D176: 2.865360734 | E176: 0.863141008 | F176: =+VLOOKUP(A176,MILES_Reg!A$3:C$5563,3,1) -> 1.309821429 | X176: 3994.14 | Y176: 2.97153439 | Z176: 4.177434387 | AB176: 3675 | AC176: 1.238195929 | AD176: 1.74067723
A177: 3990.14 | B177: 0.9448044933 | C177: 2.358336976 | D177: 2.876356424 | E177: 0.8670448732 | F177: =+VLOOKUP(A177,MILES_Reg!A$3:C$5563,3,1) -> 1.308928571 | X177: 3995.14 | Y177: 2.960818042 | Z177: 4.16236916 | AB177: 3676 | AC177: 1.239102428 | AD177: 1.741951602
A178: 3991.14 | B178: 0.9491539354 | C178: 2.367577121 | D178: 2.887626208 | E178: 0.871036346 | F178: =+VLOOKUP(A178,MILES_Reg!A$3:C$5563,3,1) -> 1.308035714 | X178: 3996.14 | Y178: 2.946829825 | Z178: 4.142704283 | AB178: 3677 | AC178: 1.214609205 | AD178: 1.707518606
A179: 3992.14 | B179: 0.9487514667 | C179: 2.364958441 | D179: 2.884432324 | E179: 0.8706670014 | F179: =+VLOOKUP(A179,MILES_Reg!A$3:C$5563,3,1) -> 1.307142857 | X179: 3997.14 | Y179: 2.931720351 | Z179: 4.121463124 | AB179: 3678 | AC179: 1.189687762 | AD179: 1.672483611
A180: 3993.14 | B180: 0.9468300665 | C180: 2.358558567 | D180: 2.876626688 | E180: 0.8689037369 | F180: =+VLOOKUP(A180,MILES_Reg!A$3:C$5563,3,1) -> 1.30625 | X180: 3998.14 | Y180: 2.917885798 | Z180: 4.10201427 | AB180: 3679 | AC180: 1.189199704 | AD180: 1.671797491
A181: 3994.14 | B181: 0.9455544635 | C181: 2.353773912 | D181: 2.870791062 | E181: 0.867733119 | F181: =+VLOOKUP(A181,MILES_Reg!A$3:C$5563,3,1) -> 1.305357143 | X181: 3999.14 | Y181: 2.907722326 | Z181: 4.087726285 | AB181: 3680 | AC181: 1.23355758 | AD181: 1.734156559
A182: 3995.14 | B182: 0.9457792155 | C182: 2.352726982 | D182: 2.869514169 | E182: 0.8679393734 | F182: =+VLOOKUP(A182,MILES_Reg!A$3:C$5563,3,1) -> 1.304464286 | X182: 4000.14 | Y182: 2.903623897 | Z182: 4.081964644 | AB182: 3681 | AC182: 1.280494889 | AD182: 1.800141839
A183: 3996.14 | B183: 0.9461894699 | C183: 2.352141527 | D183: 2.868800116 | E183: 0.868315863 | F183: =+VLOOKUP(A183,MILES_Reg!A$3:C$5563,3,1) -> 1.303571429 | X183: 4001.14 | Y183: 2.906788516 | Z183: 4.086413519 | AB183: 3682 | AC183: 1.237762242 | AD183: 1.740067546
A184: 3997.14 | B184: 0.94237766 | C184: 2.341067266 | D184: 2.855293343 | E184: 0.8648177739 | F184: =+VLOOKUP(A184,MILES_Reg!A$3:C$5563,3,1) -> 1.302678571 | X184: 4002.14 | Y184: 2.915249328 | Z184: 4.098307876 | AB184: 3683 | AC184: 1.201584053 | AD184: 1.689207623
A185: 3998.14 | B185: 0.9366032361 | C185: 2.325134797 | D185: 2.835861235 | E185: 0.8595185986 | F185: =+VLOOKUP(A185,MILES_Reg!A$3:C$5563,3,1) -> 1.301785714 | X185: 4003.14 | Y185: 2.92652184 | Z185: 4.114154968 | AB185: 3684 | AC185: 1.273618791 | AD185: 1.790475302
A186: 3999.14 | B186: 0.9310945034 | C186: 2.309882114 | D186: 2.817258231 | E186: 0.8544632475 | F186: =+VLOOKUP(A186,MILES_Reg!A$3:C$5563,3,1) -> 1.300892857 | X186: 4004.14 | Y186: 2.938121585 | Z186: 4.130462089 | AB186: 3685 | AC186: 1.306740803 | AD186: 1.837038799
A187: 4000.14 | B187: 0.9263855042 | C187: 2.296631807 | D187: 2.801097434 | E187: 0.85014181 | F187: =+VLOOKUP(A187,MILES_Reg!A$3:C$5563,3,1) -> 1.3 | X187: 4005.14 | Y187: 2.947565571 | Z187: 4.143738609 | AB187: 3686 | AC187: 1.20758426 | AD187: 1.697642817
A188: 4001.14 | B188: 0.9215475998 | C188: 2.283328497 | D188: 2.784871991 | E188: 0.8457020764 | F188: =+VLOOKUP(A188,MILES_Reg!A$3:C$5563,3,1) -> 1.29925 | X188: 4006.14 | Y188: 2.953177799 | Z188: 4.151628376 | AB188: 3687 | AC188: 1.183566223 | AD188: 1.663877846
A189: 4002.14 | B189: 0.9207534794 | C189: 2.280053267 | D189: 2.780877342 | E189: 0.844973314 | F189: =+VLOOKUP(A189,MILES_Reg!A$3:C$5563,3,1) -> 1.2985 | X189: 4007.14 | Y189: 2.95541779 | Z189: 4.154777393 | AB189: 3688 | AC189: 1.340027451 | AD189: 1.883833744
A190: 4003.14 | B190: 0.9226105828 | C190: 2.28334248 | D190: 2.784889045 | E190: 0.8466775734 | F190: =+VLOOKUP(A190,MILES_Reg!A$3:C$5563,3,1) -> 1.29775 | X190: 4008.14 | Y190: 2.955094346 | Z190: 4.15432269 | AB190: 3689 | AC190: 1.51874113 | AD190: 2.135072522
A191: 4004.14 | B191: 0.9233509459 | C191: 2.283864968 | D191: 2.785526301 | E191: 0.8473570029 | F191: =+VLOOKUP(A191,MILES_Reg!A$3:C$5563,3,1) -> 1.297 | X191: 4009.14 | Y191: 2.953016259 | Z191: 4.151401279 | AB191: 3690 | AC191: 1.489110405 | AD191: 2.093417136
A192: 4005.14 | B192: 0.9176613321 | C192: 2.268490979 | D192: 2.766775345 | E192: 0.8421356576 | F192: =+VLOOKUP(A192,MILES_Reg!A$3:C$5563,3,1) -> 1.29625 | X192: 4010.14 | Y192: 2.949992168 | Z192: 4.14714996 | AB192: 3691 | AC192: 1.293994587 | AD192: 1.819119948
A193: 4006.14 | B193: 0.911108674 | C193: 2.251001611 | D193: 2.745444358 | E193: 0.8361222987 | F193: =+VLOOKUP(A193,MILES_Reg!A$3:C$5563,3,1) -> 1.2955 | X193: 4011.14 | Y193: 2.946748118 | Z193: 4.142589419 | AB193: 3692 | AC193: 1.241447514 | AD193: 1.745248365
A194: 4007.14 | B194: 0.9085897798 | C194: 2.243491725 | D194: 2.73628489 | E194: 0.8338107153 | F194: =+VLOOKUP(A194,MILES_Reg!A$3:C$5563,3,1) -> 1.29475 | X194: 4012.14 | Y194: 2.943791579 | Z194: =+Y194/$N$11 -> 4.138433065 | AB194: 3693 | AC194: 1.41636115 | AD194: 1.991144977
A195: 4008.14 | B195: 0.9099441286 | C195: 2.245548046 | D195: 2.738792892 | E195: 0.8350535981 | F195: =+VLOOKUP(A195,MILES_Reg!A$3:C$5563,3,1) -> 1.294 | X195: 4013.14 | Y195: 2.941594272 | Z195: 4.135344052 | AB195: 3694 | AC195: 1.580115706 | AD195: 2.221353961
A196: 4009.14 | B196: 0.9114172318 | C196: 2.247894165 | D196: 2.741654346 | E196: 0.8364054614 | F196: =+VLOOKUP(A196,MILES_Reg!A$3:C$5563,3,1) -> 1.29325 | X196: 4014.14 | Y196: 2.940627916 | Z196: 4.133985532 | AB196: 3695 | AC196: 1.553537502 | AD196: 2.183989863
A197: 4010.14 | B197: 0.9152420233 | C197: 2.256033671 | D197: =+C197/$N$9 -> 2.751581732 | E197: 0.8399154636 | F197: =+VLOOKUP(A197,MILES_Reg!A$3:C$5563,3,1) -> 1.2925 | X197: 4015.14 | Y197: 2.941363514 | Z197: 4.13501965 | AB197: 3696 | AC197: 1.36222043 | AD197: 1.915033017
A198: 4011.14 | B198: 0.9195237025 | C198: =+E198*10^(0.4*$I$5*F198) -> 2.265288671 | D198: 2.762869635 | E198: =+B198/$N$10 -> 0.8438447506 | F198: =+VLOOKUP(A198,MILES_Reg!A$3:C$5563,3,1) -> 1.29175 | X198: 4016.14 | Y198: 2.943882863 | Z198: 4.138561393 | AB198: 3697 | AC198: 1.18972709 | AD198: 1.672538899
A199: 4012.14 | B199: 0.9232773708 | C199: 2.273232288 | D199: 2.772558103 | E199: 0.8472894832 | F199: =+VLOOKUP(A199,MILES_Reg!A$3:C$5563,3,1) -> 1.291 | X199: 4017.14 | Y199: 2.947237793 | Z199: 4.143277813 | AB199: 3698 | AC199: 1.28028512 | AD199: 1.799846943
A200: 4013.14 | B200: 0.926288778 | C200: 2.279339555 | D200: 2.78000686 | E200: 0.8500530446 | F200: =+VLOOKUP(A200,MILES_Reg!A$3:C$5563,3,1) -> 1.29025 | X200: 4018.14 | Y200: 2.95031168 | Z200: 4.147599136 | AB200: 3699 | AC200: 1.537505035 | AD200: 2.161451144
... 2050 more rows

Sheet Data
D1: mag | N1: 3819.14 | O1: 3.197363985
A2: lam Angstrom | B2: lam mu | C2: a+b/R | D2: A0 for Ebv=1 | E2: fit | F2: fit norm 6000 | N2: 3820.14 | O2: 3.267296376
A3: 7143 | B3: =+A3/10000 -> 0.7143 | C3: 0.728 | D3: =3.1*C3 -> 2.2568 | E3: =18.783+B3*(-63.306+B3*(86.828-B3*42.818)) -> 2.26013254 | F3: =18.783+B3*(-63.306+B3*(86.828-B3*42.818))-2.8088 -> -0.5486674599 | G3: -0.4096 | N3: 3821.14 | O3: 3.296793851
A4: 6563 | B4: =+A4/10000 -> 0.6563 | C4: 0.818 | D4: =3.1*C4 -> 2.5358 | E4: =18.783+B4*(-63.306+B4*(86.828-B4*42.818)) -> 2.530539412 | F4: =18.783+B4*(-63.306+B4*(86.828-B4*42.818))-2.8088 -> -0.2782605882 | N4: 3822.14 | O4: 3.290763203
A5: 6250 | B5: 0.625 | C5: 0.866 | D5: 2.6846 | E5: 2.680324219 | F5: -0.1284757812 | N5: 3823.14 | O5: 3.254111227
A6: 5555 | B6: 0.5555 | C6: 0.987 | D6: 3.0597 | E6: 3.070218577 | F6: 0.2614185772 | N6: 3824.14 | O6: 3.191744713
A7: 5000 | B7: 0.5 | C7: 1.122 | D7: 3.4782 | E7: 3.48475 | F7: 0.67595 | N7: 3825.14 | O7: 3.10856905
A8: 4861 | B8: 0.4861 | C8: 1.164 | D8: 3.6084 | E8: 3.608653582 | F8: 0.799853582 | N8: 3826.14 | O8: 3.008727345
A9: 4545 | B9: 0.4545 | C9: 1.271 | D9: 3.9401 | E9: 3.926486271 | F9: 1.117686271 | N9: 3827.14 | O9: 2.894345501
A10: 4340 | B10: 0.434 | C10: 1.346 | D10: 4.1726 | E10: 4.16254896 | F10: 1.35374896 | N10: 3828.14 | O10: 2.767219476
A11: 4167 | B11: 0.4167 | C11: 1.409 | D11: 4.3679 | E11: 4.381997015 | F11: 1.573197015 | G11: 0.178 | N11: 3829.14 | O11: 2.629145273
N12: 3830.14 | O12: 2.481925897
A13: 6000 | B13: 0.6 | E13: 2.808792 | F13: used for normalization | N13: 3831.14 | O13: 2.331175746
A14: 5500 | B14: 0.55 | E14: 3.10632525 | F14: should be Rv | N14: 3832.14 | O14: 2.192595271
N15: 3833.14 | O15: 2.083534603
N16: 3834.14 | O16: 2.021343735
A17: Fitzpatrick | N17: 3835.14 | O17: 2.023355158
B18: Rv | C18: 3.1 | N18: 3836.14 | O18: 2.097370959
N19: 3837.14 | O19: 2.225973008
A20: l [Å] | B20: l[nm] | C20: Al/EB_V | N20: 3838.14 | O20: 2.387618183
N21: 3839.14 | O21: 2.560763568
A22: 6000 | B22: =+A22/10000 -> 0.6 | C22: =-0.426+1.0044*Rv -> 2.68764 | D22: =+C22-3.1 -> -0.41236 | N22: 3840.14 | O22: 2.723876672
A23: 5470 | B23: =+A23/10000 -> 0.547 | C23: =-0.05+1.0016*Rv -> 3.05496 | D23: =+C23-3.1 -> -0.04504 | N23: 3841.14 | O23: 2.861117945
A24: 4670 | B24: 0.467 | C24: =0.701+1.0016*Rv -> 3.80596 | D24: 0.70596 | N24: 3842.14 | O24: 2.97171299
A25: 4110 | B25: =+A25/10000 -> 0.411 | C25: =1.208+1.0032*Rv-0.00033*Rv^2 -> 4.3147487 | D25: 1.2147487 | N25: 3843.14 | O25: 3.057351449
N26: 3844.14 | O26: 3.119722866
A27: 5500 | B27: =+A27/10000 -> 0.55 | C27: =-3.8726+B27*(66.4639+B27*(-158.2443+109.4904*B27)) -> 3.03010955 | N27: 3845.14 | O27: 3.160518423
A29: MILES
N30: 3846.14 | O30: 3.182305067
A31: 3440 | B31: 0.344 | C31: 4.9 | D31: =+C31-3.1 -> 1.8 | N31: 3847.14 | O31: 3.189967292
A32: 4000 | B32: 0.4 | C32: 4.4 | D32: =+C32-3.1 -> 1.3 | N32: 3848.14 | O32: 3.18876865
A33: 4400 | B33: 0.44 | C33: 4.1 | D33: 1 | N33: 3849.14 | O33: 3.183972663
A34: 5500 | B34: 0.55 | C34: 3.1 | D34: 0 | N34: 3850.14 | O34: 3.180839506
A35: 7000 | B35: 0.7 | C35: 2.32 | D35: -0.78 | N35: 3851.14 | O35: 3.182805525
A36: 9000 | B36: 0.9 | C36: 1.5 | D36: -1.6 | N36: 3852.14 | O36: 3.188480694
N37: 3853.14 | O37: 3.195685588
N38: 3854.14 | O38: 3.202240823
N39: 3855.14 | O39: 3.20596861
N40: 3856.14 | O40: 3.205564255
N41: 3857.14 | O41: 3.202033527
N42: 3858.14 | O42: 3.196760089
N43: 3859.14 | O43: 3.191127587
N44: 3860.14 | O44: 3.1865191
N45: 3861.14 | O45: 3.184006148
N46: 3862.14 | O46: 3.183835789
N47: 3863.14 | O47: 3.186120234
N48: 3864.14 | O48: 3.190971695
N49: 3865.14 | O49: 3.198501449
N50: 3866.14 | O50: 3.20831371
N51: 3867.14 | O51: 3.218670848
N52: 3868.14 | O52: 3.227615761
N53: 3869.14 | O53: 3.233191362
N54: 3870.14 | O54: 3.23344181
N55: 3871.14 | O55: 3.227090677
N56: 3872.14 | O56: 3.214659462
N57: 3873.14 | O57: 3.196963732
N58: 3874.14 | O58: 3.17481903
N59: 3875.14 | O59: 3.149038062
N60: 3876.14 | O60: 3.118887429
N61: 3877.14 | O61: 3.079542305
N62: 3878.14 | O62: 3.025508664
N63: 3879.14 | O63: 2.95129254
N64: 3880.14 | O64: 2.851407711
N65: 3881.14 | O65: 2.724585535
N66: 3882.14 | O66: 2.580718305
N67: 3883.14 | O67: 2.431523785
N68: 3884.14 | O68: 2.288719653
N69: 3885.14 | O69: 2.164020693
N70: 3886.14 | O70: 2.067557662
N71: 3887.14 | O71: 2.005269522
N72: 3888.14 | O72: 1.982409642
N73: 3889.14 | O73: 2.004231376
N74: 3890.14 | O74: 2.075976919
N75: 3891.14 | O75: 2.196823163
N76: 3892.14 | O76: 2.349896436
N77: 3893.14 | O77: 2.515697844
N78: 3894.14 | O78: 2.674728651
N79: 3895.14 | O79: 2.807503085
N80: 3896.14 | O80: 2.901601774
N81: 3897.14 | O81: 2.963305088
N82: 3898.14 | O82: 3.001951907
N83: 3899.14 | O83: 3.026880965
N84: 3900.14 | O84: 3.047425815
N85: 3901.14 | O85: 3.070083343
N86: 3902.14 | O86: 3.093843817
N87: 3903.14 | O87: 3.116469727
N88: 3904.14 | O88: 3.135723623
N89: 3905.14 | O89: 3.149369907
N90: 3906.14 | O90: 3.156188004
N91: 3907.14 | O91: 3.157643378
N92: 3908.14 | O92: 3.155640819
N93: 3909.14 | O93: 3.152085094
N94: 3910.14 | O94: 3.148879785
N95: 3911.14 | O95: 3.147281218
N96: 3912.14 | O96: 3.1468329
N97: 3913.14 | O97: 3.146798187
N98: 3914.14 | O98: 3.146440451
N99: 3915.14 | O99: 3.145023806
N100: 3916.14 | O100: 3.142216807
N101: 3917.14 | O101: 3.138758286
N102: 3918.14 | O102: 3.135562132
N103: 3919.14 | O103: 3.133542215
N104: 3920.14 | O104: 3.133610161
N105: 3921.14 | O105: 3.13545508
N106: 3922.14 | O106: 3.135530948
N107: 3923.14 | O107: 3.129762605
N108: 3924.14 | O108: 3.11407493
N109: 3925.14 | O109: 3.084397673
N110: 3926.14 | O110: 3.039313212
N111: 3927.14 | O111: 2.984423546
N112: 3928.14 | O112: 2.926478795
N113: 3929.14 | O113: 2.872229021
N114: 3930.14 | O114: 2.828421212
N115: 3931.14 | O115: 2.800123585
N116: 3932.14 | O116: 2.787961845
N117: 3933.14 | O117: 2.791835088
N118: 3934.14 | O118: 2.81164243
N119: 3935.14 | O119: 2.847279622
N120: 3936.14 | O120: 2.896817832
N121: 3937.14 | O121: 2.953499843
N122: 3938.14 | O122: 3.009778709
N123: 3939.14 | O123: 3.05810754
N124: 3940.14 | O124: 3.090945617
N125: 3941.14 | O125: 3.104113582
N126: 3942.14 | O126: 3.102327213
N127: 3943.14 | O127: 3.091757169
N128: 3944.14 | O128: 3.078574032
N129: 3945.14 | O129: 3.068944432
N130: 3946.14 | O130: 3.066876251
N131: 3947.14 | O131: 3.070664698
N132: 3948.14 | O132: 3.077670625
N133: 3949.14 | O133: 3.085254925
N134: 3950.14 | O134: 3.090779279
N135: 3951.14 | O135: 3.09203805
N136: 3952.14 | O136: 3.087970606
N137: 3953.14 | O137: 3.07770359
N138: 3954.14 | O138: 3.060363636
N139: 3955.14 | O139: 3.035076847
N140: 3956.14 | O140: 3.000679395
N141: 3957.14 | O141: 2.955240211
N142: 3958.14 | O142: 2.896702736
N143: 3959.14 | O143: 2.823010426
N144: 3960.14 | O144: 2.732109617
N145: 3961.14 | O145: 2.623513673
N146: 3962.14 | O146: 2.500882768
N147: 3963.14 | O147: 2.368555319
N148: 3964.14 | O148: 2.230869733
N149: 3965.14 | O149: 2.092168608
N150: 3966.14 | O150: 1.959071884
N151: 3967.14 | O151: 1.844225993
N152: 3968.14 | O152: 1.761263076
N153: 3969.14 | O153: 1.723815168
N154: 3970.14 | O154: 1.745498861
N155: 3971.14 | O155: 1.831524708
N156: 3972.14 | O156: 1.96485843
N157: 3973.14 | O157: 2.124827405
N158: 3974.14 | O158: 2.290759203
N159: 3975.14 | O159: 2.441992636
N160: 3976.14 | O160: 2.564003298
N161: 3977.14 | O161: 2.658506468
N162: 3978.14 | O162: 2.729873569
N163: 3979.14 | O163: 2.782475911
N164: 3980.14 | O164: 2.820684027
N165: 3981.14 | O165: 2.848430866
N166: 3982.14 | O166: 2.868491421
N167: 3983.14 | O167: 2.883451289
N168: 3984.14 | O168: 2.895896071
N169: 3985.14 | O169: 2.908409609
N170: 3986.14 | O170: 2.922621103
N171: 3987.14 | O171: 2.937633487
N172: 3988.14 | O172: 2.952136504
N173: 3989.14 | O173: 2.964819916
N174: 3990.14 | O174: 2.974374106
N175: 3991.14 | O175: 2.979830331
N176: 3992.14 | O176: 2.981121894
N177: 3993.14 | O177: 2.978329635
N178: 3994.14 | O178: 2.97153439
N179: 3995.14 | O179: 2.960818042
N180: 3996.14 | O180: 2.946829825
N181: 3997.14 | O181: 2.931720351
N182: 3998.14 | O182: 2.917885798
N183: 3999.14 | O183: 2.907722326
N184: 4000.14 | O184: 2.903623897
N185: 4001.14 | O185: 2.906788516
N186: 4002.14 | O186: 2.915249328
N187: 4003.14 | O187: 2.92652184
N188: 4004.14 | O188: 2.938121585
N189: 4005.14 | O189: 2.947565571
N190: 4006.14 | O190: 2.953177799
N191: 4007.14 | O191: 2.95541779
N192: 4008.14 | O192: 2.955094346
N193: 4009.14 | O193: 2.953016259
N194: 4010.14 | O194: 2.949992168
N195: 4011.14 | O195: 2.946748118
N196: 4012.14 | O196: 2.943791579
N197: 4013.14 | O197: 2.941594272
N198: 4014.14 | O198: 2.940627916
N199: 4015.14 | O199: 2.941363514
N200: 4016.14 | O200: 2.943882863
N201: 4017.14 | O201: 2.947237793
... 3370 more rows

Sheet MILES_Reg
A1: MILES
A3: 3440 | B3: =+A3/10000 -> 0.344 | C3: =+$H$3+($H$4-$H$3)/($E$4-$E$3)*(A3-$E$3) -> 1.8 | E3: 3440 | F3: =+E3/10000 -> 0.344 | G3: 4.9 | H3: =+G3-3.1 -> 1.8
A4: 3441 | B4: =+A4/10000 -> 0.3441 | C4: =+$H$3+($H$4-$H$3)/($E$4-$E$3)*(A4-$E$3) -> 1.799107143 | E4: 4000 | F4: 0.4 | G4: 4.4 | H4: =+G4-3.1 -> 1.3
A5: 3442 | B5: =+A5/10000 -> 0.3442 | C5: =+$H$3+($H$4-$H$3)/($E$4-$E$3)*(A5-$E$3) -> 1.798214286 | E5: 4400 | F5: 0.44 | G5: 4.1 | H5: 1
A6: 3443 | B6: 0.3443 | C6: 1.797321429 | E6: 5500 | F6: 0.55 | G6: 3.1 | H6: 0
A7: 3444 | B7: 0.3444 | C7: 1.796428571 | E7: 7000 | F7: 0.7 | G7: 2.32 | H7: -0.78
A8: 3445 | B8: 0.3445 | C8: 1.795535714 | E8: 9000 | F8: 0.9 | G8: 1.5 | H8: -1.6
A9: 3446 | B9: 0.3446 | C9: 1.794642857
A10: 3447 | B10: 0.3447 | C10: 1.79375
A11: 3448 | B11: 0.3448 | C11: 1.792857143
A12: 3449 | B12: 0.3449 | C12: 1.791964286
A13: 3450 | B13: 0.345 | C13: 1.791071429
A14: 3451 | B14: 0.3451 | C14: 1.790178571
A15: 3452 | B15: 0.3452 | C15: 1.789285714
A16: 3453 | B16: 0.3453 | C16: 1.788392857
A17: 3454 | B17: 0.3454 | C17: 1.7875
A18: 3455 | B18: 0.3455 | C18: 1.786607143
A19: 3456 | B19: 0.3456 | C19: 1.785714286
A20: 3457 | B20: 0.3457 | C20: 1.784821429
A21: 3458 | B21: 0.3458 | C21: 1.783928571
A22: 3459 | B22: 0.3459 | C22: 1.783035714
A23: 3460 | B23: 0.346 | C23: 1.782142857
A24: 3461 | B24: 0.3461 | C24: 1.78125
A25: 3462 | B25: 0.3462 | C25: 1.780357143
A26: 3463 | B26: 0.3463 | C26: 1.779464286
A27: 3464 | B27: 0.3464 | C27: 1.778571429
A28: 3465 | B28: 0.3465 | C28: 1.777678571
A29: 3466 | B29: 0.3466 | C29: 1.776785714
A30: 3467 | B30: 0.3467 | C30: 1.775892857
A31: 3468 | B31: 0.3468 | C31: 1.775
A32: 3469 | B32: 0.3469 | C32: 1.774107143
A33: 3470 | B33: 0.347 | C33: 1.773214286
A34: 3471 | B34: 0.3471 | C34: 1.772321429
A35: 3472 | B35: 0.3472 | C35: 1.771428571
A36: 3473 | B36: 0.3473 | C36: 1.770535714
A37: 3474 | B37: 0.3474 | C37: 1.769642857
A38: 3475 | B38: 0.3475 | C38: 1.76875
A39: 3476 | B39: 0.3476 | C39: 1.767857143
A40: 3477 | B40: 0.3477 | C40: 1.766964286
A41: 3478 | B41: 0.3478 | C41: 1.766071429
A42: 3479 | B42: 0.3479 | C42: 1.765178571
A43: 3480 | B43: 0.348 | C43: 1.764285714
A44: 3481 | B44: 0.3481 | C44: 1.763392857
A45: 3482 | B45: 0.3482 | C45: 1.7625
A46: 3483 | B46: 0.3483 | C46: 1.761607143
A47: 3484 | B47: 0.3484 | C47: 1.760714286
A48: 3485 | B48: 0.3485 | C48: 1.759821429
A49: 3486 | B49: 0.3486 | C49: 1.758928571
A50: 3487 | B50: 0.3487 | C50: 1.758035714
A51: 3488 | B51: 0.3488 | C51: 1.757142857
A52: 3489 | B52: 0.3489 | C52: 1.75625
A53: 3490 | B53: 0.349 | C53: 1.755357143
A54: 3491 | B54: 0.3491 | C54: 1.754464286
A55: 3492 | B55: 0.3492 | C55: 1.753571429
A56: 3493 | B56: 0.3493 | C56: 1.752678571
A57: 3494 | B57: 0.3494 | C57: 1.751785714
A58: 3495 | B58: 0.3495 | C58: 1.750892857
A59: 3496 | B59: 0.3496 | C59: 1.75
A60: 3497 | B60: 0.3497 | C60: 1.749107143
A61: 3498 | B61: 0.3498 | C61: 1.748214286
A62: 3499 | B62: 0.3499 | C62: 1.747321429
A63: 3500 | B63: 0.35 | C63: 1.746428571
A64: 3501 | B64: 0.3501 | C64: 1.745535714
A65: 3502 | B65: 0.3502 | C65: 1.744642857
A66: 3503 | B66: 0.3503 | C66: 1.74375
A67: 3504 | B67: 0.3504 | C67: 1.742857143
A68: 3505 | B68: 0.3505 | C68: 1.741964286
A69: 3506 | B69: =+A69/10000 -> 0.3506 | C69: =+$H$3+($H$4-$H$3)/($E$4-$E$3)*(A69-$E$3) -> 1.741071429
A70: 3507 | B70: 0.3507 | C70: 1.740178571
A71: 3508 | B71: 0.3508 | C71: 1.739285714
A72: 3509 | B72: 0.3509 | C72: 1.738392857
A73: 3510 | B73: 0.351 | C73: 1.7375
A74: 3511 | B74: 0.3511 | C74: 1.736607143
A75: 3512 | B75: 0.3512 | C75: 1.735714286
A76: 3513 | B76: 0.3513 | C76: 1.734821429
A77: 3514 | B77: 0.3514 | C77: 1.733928571
A78: 3515 | B78: 0.3515 | C78: 1.733035714
A79: 3516 | B79: 0.3516 | C79: 1.732142857
A80: 3517 | B80: 0.3517 | C80: 1.73125
A81: 3518 | B81: 0.3518 | C81: 1.730357143
A82: 3519 | B82: 0.3519 | C82: 1.729464286
A83: 3520 | B83: 0.352 | C83: 1.728571429
A84: 3521 | B84: 0.3521 | C84: 1.727678571
A85: 3522 | B85: 0.3522 | C85: 1.726785714
A86: 3523 | B86: 0.3523 | C86: 1.725892857
A87: 3524 | B87: 0.3524 | C87: 1.725
A88: 3525 | B88: 0.3525 | C88: 1.724107143
A89: 3526 | B89: 0.3526 | C89: 1.723214286
A90: 3527 | B90: 0.3527 | C90: 1.722321429
A91: 3528 | B91: 0.3528 | C91: 1.721428571
A92: 3529 | B92: 0.3529 | C92: 1.720535714
A93: 3530 | B93: 0.353 | C93: 1.719642857
A94: 3531 | B94: 0.3531 | C94: 1.71875
A95: 3532 | B95: 0.3532 | C95: 1.717857143
A96: 3533 | B96: 0.3533 | C96: 1.716964286
A97: 3534 | B97: 0.3534 | C97: 1.716071429
A98: 3535 | B98: 0.3535 | C98: 1.715178571
A99: 3536 | B99: 0.3536 | C99: 1.714285714
A100: 3537 | B100: 0.3537 | C100: 1.713392857
A101: 3538 | B101: 0.3538 | C101: 1.7125
A102: 3539 | B102: 0.3539 | C102: 1.711607143
A103: 3540 | B103: 0.354 | C103: 1.710714286
A104: 3541 | B104: 0.3541 | C104: 1.709821429
A105: 3542 | B105: 0.3542 | C105: 1.708928571
A106: 3543 | B106: 0.3543 | C106: 1.708035714
A107: 3544 | B107: 0.3544 | C107: 1.707142857
A108: 3545 | B108: 0.3545 | C108: 1.70625
A109: 3546 | B109: 0.3546 | C109: 1.705357143
A110: 3547 | B110: 0.3547 | C110: 1.704464286
A111: 3548 | B111: 0.3548 | C111: 1.703571429
A112: 3549 | B112: 0.3549 | C112: 1.702678571
A113: 3550 | B113: 0.355 | C113: 1.701785714
A114: 3551 | B114: 0.3551 | C114: 1.700892857
A115: 3552 | B115: 0.3552 | C115: 1.7
A116: 3553 | B116: 0.3553 | C116: 1.699107143
A117: 3554 | B117: 0.3554 | C117: 1.698214286
A118: 3555 | B118: 0.3555 | C118: 1.697321429
A119: 3556 | B119: 0.3556 | C119: 1.696428571
A120: 3557 | B120: 0.3557 | C120: 1.695535714
A121: 3558 | B121: 0.3558 | C121: 1.694642857
A122: 3559 | B122: 0.3559 | C122: 1.69375
A123: 3560 | B123: 0.356 | C123: 1.692857143
A124: 3561 | B124: 0.3561 | C124: 1.691964286
A125: 3562 | B125: 0.3562 | C125: 1.691071429
A126: 3563 | B126: 0.3563 | C126: 1.690178571
A127: 3564 | B127: 0.3564 | C127: 1.689285714
A128: 3565 | B128: 0.3565 | C128: 1.688392857
A129: 3566 | B129: 0.3566 | C129: 1.6875
A130: 3567 | B130: 0.3567 | C130: 1.686607143
A131: 3568 | B131: 0.3568 | C131: 1.685714286
A132: 3569 | B132: 0.3569 | C132: 1.684821429
A133: 3570 | B133: =+A133/10000 -> 0.357 | C133: =+$H$3+($H$4-$H$3)/($E$4-$E$3)*(A133-$E$3) -> 1.683928571
A134: 3571 | B134: 0.3571 | C134: 1.683035714
A135: 3572 | B135: 0.3572 | C135: 1.682142857
A136: 3573 | B136: 0.3573 | C136: 1.68125
A137: 3574 | B137: 0.3574 | C137: 1.680357143
A138: 3575 | B138: 0.3575 | C138: 1.679464286
A139: 3576 | B139: 0.3576 | C139: 1.678571429
A140: 3577 | B140: 0.3577 | C140: 1.677678571
A141: 3578 | B141: 0.3578 | C141: 1.676785714
A142: 3579 | B142: 0.3579 | C142: 1.675892857
A143: 3580 | B143: 0.358 | C143: 1.675
A144: 3581 | B144: 0.3581 | C144: 1.674107143
A145: 3582 | B145: 0.3582 | C145: 1.673214286
A146: 3583 | B146: 0.3583 | C146: 1.672321429
A147: 3584 | B147: 0.3584 | C147: 1.671428571
A148: 3585 | B148: 0.3585 | C148: 1.670535714
A149: 3586 | B149: 0.3586 | C149: 1.669642857
A150: 3587 | B150: 0.3587 | C150: 1.66875
A151: 3588 | B151: 0.3588 | C151: 1.667857143
A152: 3589 | B152: 0.3589 | C152: 1.666964286
A153: 3590 | B153: 0.359 | C153: 1.666071429
A154: 3591 | B154: 0.3591 | C154: 1.665178571
A155: 3592 | B155: 0.3592 | C155: 1.664285714
A156: 3593 | B156: 0.3593 | C156: 1.663392857
A157: 3594 | B157: 0.3594 | C157: 1.6625
A158: 3595 | B158: 0.3595 | C158: 1.661607143
A159: 3596 | B159: 0.3596 | C159: 1.660714286
A160: 3597 | B160: 0.3597 | C160: 1.659821429
A161: 3598 | B161: 0.3598 | C161: 1.658928571
A162: 3599 | B162: 0.3599 | C162: 1.658035714
A163: 3600 | B163: 0.36 | C163: 1.657142857
A164: 3601 | B164: 0.3601 | C164: 1.65625
A165: 3602 | B165: 0.3602 | C165: 1.655357143
A166: 3603 | B166: 0.3603 | C166: 1.654464286
A167: 3604 | B167: 0.3604 | C167: 1.653571429
A168: 3605 | B168: 0.3605 | C168: 1.652678571
A169: 3606 | B169: 0.3606 | C169: 1.651785714
A170: 3607 | B170: 0.3607 | C170: 1.650892857
A171: 3608 | B171: 0.3608 | C171: 1.65
A172: 3609 | B172: 0.3609 | C172: 1.649107143
A173: 3610 | B173: 0.361 | C173: 1.648214286
A174: 3611 | B174: 0.3611 | C174: 1.647321429
A175: 3612 | B175: 0.3612 | C175: 1.646428571
A176: 3613 | B176: 0.3613 | C176: 1.645535714
A177: 3614 | B177: 0.3614 | C177: 1.644642857
A178: 3615 | B178: 0.3615 | C178: 1.64375
A179: 3616 | B179: 0.3616 | C179: 1.642857143
A180: 3617 | B180: 0.3617 | C180: 1.641964286
A181: 3618 | B181: 0.3618 | C181: 1.641071429
A182: 3619 | B182: 0.3619 | C182: 1.640178571
A183: 3620 | B183: 0.362 | C183: 1.639285714
A184: 3621 | B184: 0.3621 | C184: 1.638392857
A185: 3622 | B185: 0.3622 | C185: 1.6375
A186: 3623 | B186: 0.3623 | C186: 1.636607143
A187: 3624 | B187: 0.3624 | C187: 1.635714286
A188: 3625 | B188: 0.3625 | C188: 1.634821429
A189: 3626 | B189: 0.3626 | C189: 1.633928571
A190: 3627 | B190: 0.3627 | C190: 1.633035714
A191: 3628 | B191: 0.3628 | C191: 1.632142857
A192: 3629 | B192: 0.3629 | C192: 1.63125
A193: 3630 | B193: 0.363 | C193: 1.630357143
A194: 3631 | B194: 0.3631 | C194: 1.629464286
A195: 3632 | B195: 0.3632 | C195: 1.628571429
A196: 3633 | B196: 0.3633 | C196: 1.627678571
A197: 3634 | B197: =+A197/10000 -> 0.3634 | C197: =+$H$3+($H$4-$H$3)/($E$4-$E$3)*(A197-$E$3) -> 1.626785714
A198: 3635 | B198: 0.3635 | C198: 1.625892857
A199: 3636 | B199: 0.3636 | C199: 1.625
A200: 3637 | B200: 0.3637 | C200: 1.624107143
A201: 3638 | B201: 0.3638 | C201: 1.623214286
... 5362 more rows
